Cogmind - Beta 16 @@@ ROGUE MODE // 2025.12.04 @ 03:02:34 Player: Cracklepappy Result: Defending 0bPrime! Performance ------------- Evolutions (8) 4000 Regions Visited (34) 6800 Robots Destroyed (260) 1300 Value Destroyed (7616) 7616 Prototype IDs (91) 1820 Alien Tech Used (2) 400 Bonus (19383) 19383 TOTAL SCORE: 41319 Bonus ------- High Alert Combat Kills 1528 Follower Combat Kills 1718 Entered Garrisons 200 Registered with UFD 300 Met Optimus in HQ 500 Met Imprinter 300 Met Zhirov 300 Met Warlord at Base 500 MAIN.C Attacked Warlord 500 Met Optimus at Protoforge 1000 Executed Drillbomb Mission 10000 Optimus Survived to 0b1 3000 Win 3000 Friendly Fire -3463 Cogmind --------- Core Integrity 1085/1450 Matter 300/300 Energy 200/200 System Corruption 5% Temperature Cool (0) Movement Flying (22) Location 0bPrime Parts ------- > --- POWER (2) -------- Micro Antimatter Reactor Micro Antimatter Reactor > --- PROPULSION (8) --- Improved Diametric Drive Cooled Impulse Thruster Cooled Impulse Thruster Cooled Impulse Thruster Impulse Thruster Array Impulse Thruster Array > --- UTILITY (9) ------ 0bPrime Scrap Suit Advanced Power Amplifier Advanced Heat Sink Large Storage Unit Advanced Weight Redist. System Experimental Transmission Jammer Experimental Cloaking Device Graphene Brace > --- WEAPON (4) ------- Perforator > --- INVENTORY (15) --- Experimental Cooling System Advanced Matter Compressor (400) Cooled Nova Cannon Perforator Peak State ------------ > --- POWER ------------ Micro Antimatter Reactor Micro Antimatter Reactor > --- PROPULSION ------- Improved Diametric Drive Cooled Impulse Thruster Cooled Impulse Thruster Cooled Impulse Thruster Impulse Thruster Array Impulse Thruster Array > --- UTILITY ---------- 0bPrime Scrap Suit Advanced Power Amplifier Advanced Heat Sink Large Storage Unit Advanced Weight Redist. System Experimental Transmission Jammer Experimental Cloaking Device Graphene Brace > --- WEAPON ----------- Perforator Perforator > --- INVENTORY -------- Experimental Cooling System Advanced Matter Compressor Cooled Nova Cannon UFD Drillbomb [Rating: 209] Favorites ----------- Power Micro Fission Core Engine Improved Ion Engine Power Core Micro Fission Core Reactor Micro Antimatter Reactor Propulsion Cooled Field Propulsion Drive Treads Light Treads Wheel Compact Wheel Flight Unit Cooled Field Propulsion Drive Utility Advanced Hacking Suite Device IFF Parser Storage Large Storage Unit Processor Enhanced Optical Array Hackware Advanced Hacking Suite Protection Light Armor Plating Weapon Heavy Assault Rifle Energy Gun Vortex Shotgun Energy Cannon Advanced Plasma Cannon Ballistic Gun Heavy Assault Rifle Ballistic Cannon Perforator Launcher Heavy Rocket Launcher Special Weapon Plasma Cutter Impact Weapon Heavy Mace Slashing Weapon Makeshift Axe Piercing Weapon Lance Special Melee Weapon Improved Datajack Build | -11 -10 -10 -9 -9 -9 -9 -9 -6 -6 -6 -6 -6 -6 -6 -5 -5 -5 -5 -5 -5 -5 -4 -4 -4 -4 -4 -4 -4 -3 -3 -3 -2 -2 -2 ------- Run | Yrd Mat Min Mat Sto Gar Rec Scr Fac Was Fac Low Low Zio Dee Pro Fac Was Fac Upp Upp War Pro Fac Was Fac Upp Upp Zhi Pro Res Tes Res Qua Frg Slots Evolved 16 | . . . 2 . . . . 6 . . . . . . . 2 . . . . . . 2 . . . . . . 2 . 2 . . Power 1 | . . . . . . . . . . . . . . . . 1 . . . . . . . . . . . . . . . . . . Propulsion 6 | . . . . . . . . 3 . . . . . . . 1 . . . . . . . . . . . . . 1 . 1 . . Utility 7 | . . . . . . . . 3 . . . . . . . . . . . . . . 2 . . . . . . 1 . 1 . . Weapon 2 | . . . 2 . . . . . . . . . . . . . . . . . . . . . . . . . . . . . . . Parts Attached 274 | 9 13 3 9 22 4 5 11 34 5 6 1 6 8 1 3 30 4 7 1 . 9 . 10 1 9 5 4 2 . 6 17 2 1 26 Power 33 | 1 3 . 1 4 1 1 . 2 1 . . 2 . 1 . 8 . . . . . . . . 1 1 . . . 1 . . . 5 Engine 11 | 1 3 . 1 4 . 1 . 1 . . . . . . . . . . . . . . . . . . . . . . . . . . Core 16 | . . . . . 1 . . 1 1 . . 1 . 1 . 8 . . . . . . . . 1 1 . . . . . . . 1 Reactor 6 | . . . . . . . . . . . . 1 . . . . . . . . . . . . . . . . . 1 . . . 4 Propulsion 50 | 4 2 2 1 8 1 3 3 8 . . . . . . . 6 2 . . . 1 . . . . . . . . 2 1 . . 6 Treads 11 | 2 2 . . 3 1 2 1 . . . . . . . . . . . . . . . . . . . . . . . . . . . Leg . | . . . . . . . . . . . . . . . . . . . . . . . . . . . . . . . . . . . Wheel 12 | 2 . 2 1 4 . 1 2 . . . . . . . . . . . . . . . . . . . . . . . . . . . Hover . | . . . . . . . . . . . . . . . . . . . . . . . . . . . . . . . . . . . Flight 27 | . . . . 1 . . . 8 . . . . . . . 6 2 . . . 1 . . . . . . . . 2 1 . . 6 Utility 94 | 2 5 . 3 . . . . 17 1 4 1 1 6 . . 6 2 4 . . 5 . 7 . 5 . 1 2 . 3 5 2 1 11 Device 42 | 1 1 . 1 . . . . 5 1 3 . . . . . 1 2 1 . . 5 . 3 . 1 . . 1 . 1 3 2 . 10 Storage 15 | 1 3 . 1 . . . . 2 . 1 . . . . . 1 . . . . . . 2 . 2 . . 1 . 1 . . . . Processor 17 | . . . . . . . . 5 . . . . 5 . . . . 2 . . . . 1 . 1 . . . . . 1 . 1 1 Hackware 16 | . . . . . . . . 5 . . 1 . 1 . . 4 . 1 . . . . 1 . 1 . . . . 1 1 . . . Protection 4 | . 1 . 1 . . . . . . . . 1 . . . . . . . . . . . . . . 1 . . . . . . . Artifact . | . . . . . . . . . . . . . . . . . . . . . . . . . . . . . . . . . . . Weapon 97 | 2 3 1 4 10 2 1 8 7 3 2 . 3 2 . 3 10 . 3 1 . 3 . 3 1 3 4 3 . . . 11 . . 4 Energy Gun 10 | . 1 . 2 . . . . . . . . 1 . . . . . . . . 1 . . 1 . . 1 . . . 3 . . . Energy Cannon 9 | . . . 1 . . . 1 . 1 . . . . . . 1 . . . . 1 . 1 . . . . . . . 3 . . . Ballistic Gun 36 | 2 1 . 1 8 2 1 5 1 1 1 . 2 . . 2 4 . 1 . . . . . . . 1 . . . . 1 . . 2 Ballistic Cannon 10 | . . . . . . . 1 1 . . . . . . . 1 . . . . . . 1 . 1 1 . . . . 3 . . 1 Launcher 5 | . . 1 . . . . . 1 . 1 . . . . . . . . . . . . . . . 1 . . . . 1 . . . Special Weapon 5 | . 1 . . . . . 1 . . . . . 2 . . . . . . . 1 . . . . . . . . . . . . . Impact Weapon 3 | . . . . 1 . . . . . . . . . . . 2 . . . . . . . . . . . . . . . . . . Slashing Weapon 11 | . . . . . . . . 4 1 . . . . . 1 1 . 1 1 . . . . . . 1 1 . . . . . . . Piercing Weapon 4 | . . . . . . . . . . . . . . . . . . 1 . . . . . . 1 . 1 . . . . . . 1 Special Melee Weapon 4 | . . . . 1 . . . . . . . . . . . 1 . . . . . . 1 . 1 . . . . . . . . . Unidentified Prototypes 39 | . . . . 1 . . 1 1 1 . . . 5 . . . 2 . . . 6 . 1 . 1 . . 2 . . 13 . . 5 Parts Lost 41 | . 1 . 3 4 3 1 . 2 . . 1 4 . 5 . 4 . 5 . . . . 2 . . . . . . . . . . 6 Power 6 | . . . . . 1 . . . . . . 1 . 1 . 1 . 1 . . . . . . . . . . . . . . . 1 Propulsion 7 | . . . 1 1 . . . . . . . . . . . 1 . 1 . . . . 1 . . . . . . . . . . 2 Utility 9 | . . . 1 . . . . 1 . . 1 . . 1 . 1 . . . . . . 1 . . . . . . . . . . 3 Weapon 19 | . 1 . 1 3 2 1 . 1 . . . 3 . 3 . 1 . 3 . . . . . . . . . . . . . . . . Highest Loss Streak 4 | . 1 . 3 1 3 1 . 2 . . 1 4 . 4 . 2 . 4 . . . . 1 . . . . . . . . . . 4 To Critical Strikes 1 | . . . . . . . . 1 . . . . . . . . . . . . . . . . . . . . . . . . . . Average Backups 14 | 5 11 13 17 29 29 29 29 8 8 7 7 6 7 7 7 9 9 9 9 9 9 10 9 9 11 14 15 14 14 13 13 12 12 4 Power . | . . . 1 1 . . 1 . . 1 1 . 1 . 1 . 1 . . . . . . 1 1 2 2 2 2 1 1 1 1 . Propulsion 4 | 2 3 3 3 10 16 15 11 1 . . . . . . 1 . 1 1 2 2 1 2 1 1 1 2 2 2 2 2 2 1 2 . Utility 5 | . 3 4 6 7 6 8 7 4 2 3 3 3 4 4 3 5 5 6 6 6 6 6 5 6 6 7 7 7 7 6 5 5 4 1 Weapon 3 | 1 3 5 5 8 5 5 8 . 2 1 1 . . . . 1 1 . . . . 1 1 . 1 2 3 2 1 1 3 3 3 2 Tool/Special . | . . . . . . . . . . . . . . . . . . . . . . . . . . . . . . . . . . . Unused Backups 78 | . 5 1 . 24 . 2 4 8 1 3 1 . 1 . 1 2 2 3 . . 4 . 3 . 1 . . 1 . 3 1 2 3 2 Power 7 | . . . . 5 . . . . . . . . . . 1 . . . . . . . . . . . . . . . . 1 . . Propulsion 17 | . 2 . . 5 . . 1 2 . 1 . . . . . 1 . . . . 2 . . . . . . . . 1 . . 1 1 Utility 30 | . 1 . . 6 . 2 3 1 . 1 1 . 1 . . 1 2 3 . . 2 . 3 . 1 . . 1 . . . 1 . . Weapon 22 | . 2 1 . 8 . . . 5 1 1 . . . . . . . . . . . . . . . . . . . 2 1 . . 1 Tool/Special 2 | . . . . . . . . . . . . . . . . . . . . . . . . . . . . . . . . . 2 . Average Slot Usage (%) 90 | . 99 100 93 87 87 85 77 93 99 100 98 92 90 92 98 96 99 92 97 100 100 100 98 94 93 91 94 94 94 94 90 90 91 76 Engine 4 | . 14 14 11 11 7 4 11 . . . . . . . . . . . . . . . . . . . . . . . . . . . Core 4 | . . . . . 3 6 . 5 6 6 6 5 6 6 6 10 11 10 11 11 11 11 10 10 10 10 10 10 10 8 4 4 4 2 Treads 2 | . 23 3 4 . 1 . . . . . . . . . . . . . . . . . . . . . . . . . . . . . Wheel 7 | . 4 24 17 21 20 21 21 . . . . . . . . . . . . . . . . . . . . . . . . . . . Flight 19 | . . . . . . . . 32 33 33 33 33 33 33 33 34 34 35 35 35 35 35 31 31 31 31 31 31 31 33 33 33 34 27 Device 8 | . 1 . 1 . . . . 8 13 13 13 13 9 . 5 5 11 5 5 5 5 5 11 15 15 15 15 14 15 18 22 25 26 27 Storage 7 | . 14 14 11 11 11 11 11 6 6 6 6 6 6 6 6 5 5 5 5 5 5 5 5 5 5 5 5 5 5 4 4 4 4 4 Processor 3 | . . . . . . . . 5 6 6 6 6 8 13 13 10 5 5 5 5 5 5 6 5 5 5 5 5 5 4 4 4 4 1 Hackware 3 | . . . . . . . . 9 6 6 5 . 2 6 6 5 5 10 11 11 11 11 12 10 10 10 10 10 10 9 4 4 4 . Protection 1 | . 12 14 3 . . . . . . . . 5 4 5 . . . . . . . . . . . . . . . . . . . . Energy Gun 1 | . . . 10 2 . . . . . . . 5 4 4 . . . . . . 3 5 4 5 2 . . . . . . . 4 . Ballistic Gun 17 | . 26 27 30 40 38 41 23 13 16 20 20 13 10 6 24 9 10 5 5 5 5 5 5 5 3 4 4 . . . . . . 1 Slashing Weapon 1 | . . . . . . . . 7 8 5 5 . . . . 3 . . 2 5 5 5 . . . 1 5 10 10 9 4 3 4 . Piercing Weapon 1 | . . . . . . . . . . . . . . . . . . 1 5 5 4 5 5 5 5 5 5 5 5 4 4 3 . . Peak Build Rating 209 | 7 8 8 14 21 20 21 30 71 77 78 79 76 85 80 83 111 109 108 109 109 118 117 135 134 132 130 130 123 129 145 178 181 181 209 Average Rating 76 | 6 7 7 11 17 19 19 21 50 72 75 77 70 72 76 79 97 106 103 107 109 115 114 129 125 125 120 121 121 122 139 149 168 172 185 On Entrance 84 | . 7 8 8 13 19 20 12 20 69 73 77 75 71 77 71 83 99 107 108 109 109 114 114 126 126 127 122 122 122 122 142 153 169 171 Avg Prop Armor Cover (%) 3 | . . . 8 . . . . . . . . . . . . 2 . . . . . . . . . . . 2 2 . . . . 1 Naked Turns . | . . . . . . . . . . . . . . . . . . . . . . . . . . . . . . . . . . . Heaviest Build 165 | 12 32 33 154 159 159 159 165 31 36 31 31 31 35 31 28 45 39 40 41 41 41 41 51 41 41 41 41 41 41 47 48 53 53 79 Greatest Support 78 | 40 40 40 40 32 32 32 43 31 31 31 31 31 31 40 40 41 43 41 41 44 41 41 41 41 41 41 41 41 41 57 49 56 71 78 Greatest Overweight (x) 8 | . . 1 7 7 4 4 8 1 1 . . . 1 . . 1 1 . . . . . 1 . . . . 1 1 . . . . 1 Average Overweight (x) . | . . . 4 4 4 4 5 . . . . . . . . . . . . . . . . . . . . . . . . . . . Largest Inventory Capacity 30 | 8 15 15 30 30 30 30 30 30 8 8 8 8 8 8 8 10 10 10 10 10 10 10 10 10 15 15 15 15 15 15 15 15 15 15 Average Capacity 16 | 7 12 15 23 30 30 30 30 8 8 8 8 8 8 8 8 9 10 10 10 10 10 10 10 10 12 15 15 15 15 15 15 15 15 15 Most Carried 30 | 8 15 15 26 30 30 30 30 30 8 8 8 8 8 8 8 10 10 10 10 10 10 10 10 10 15 15 15 15 15 15 15 15 15 15 Average Carried 16 | 5 11 14 17 29 29 29 29 8 7 7 8 7 7 7 7 9 9 9 10 10 9 10 9 9 11 14 15 14 14 14 14 14 14 13 Final Capacity 30 | 8 15 15 30 30 30 30 30 8 8 8 8 8 8 8 8 10 10 10 10 10 10 10 10 10 15 15 15 15 15 15 15 15 15 15 Final Carried 30 | 8 15 14 26 30 30 30 30 8 8 8 8 8 8 5 8 10 10 10 10 10 10 10 10 10 15 15 15 15 15 15 15 15 15 5 Scrap Suit Usage (%) 1 | . . . . . . . . . . . . . . . . . . . . . . . . . . . . . . . . . . 10 Parts Cannibalized 22 | . . . . . . . . . . . . . . . . . . . . . . . . . . . . . . . . . . 22 Class Distribution -------------------- 24% | Hauler-Gunner 24% | Hacker-Sprinter 13% | Sprinter 12% | Scavenger-Sprinter 11% | Mutant 4% | Machinist-Sprinter 3% | Hauler-Mutant Dominant Class ---------------- Mutant | -10/Materials Mutant | -10/Mines Hauler-Gunner | -9/Materials Hauler-Gunner | -9/Storage Hauler-Gunner | -9/Garrison Hauler-Gunner | -9/Recycling Hauler-Gunner | -9/Scraptown Sprinter | -6/Factory Sprinter | -6/Waste Sprinter | -6/Factory Sprinter | -6/Lower Caves Sprinter | -6/Lower Caves Sprinter | -6/Zion Sprinter | -6/Deep Caves Scavenger-Sprinter | -5/Proximity Caves Machinist-Sprinter | -5/Factory Machinist-Sprinter | -5/Waste Hacker-Sprinter | -5/Factory Hacker-Sprinter | -5/Upper Caves Hacker-Sprinter | -5/Upper Caves Hacker-Sprinter | -5/Warlord Hacker-Sprinter | -4/Proximity Caves Hacker-Sprinter | -4/Factory Hacker-Sprinter | -4/Waste Hacker-Sprinter | -4/Factory Hacker-Sprinter | -4/Upper Caves Hacker-Sprinter | -4/Upper Caves Hacker-Mutant | -4/Zhirov Hacker-Sprinter | -3/Proximity Caves Hacker-Sprinter | -3/Research Hacker-Sprinter | -3/Testing Hacker-Sprinter | -2/Research Hacker-Sprinter | -2/Quarantine Scavenger-Sprinter | -2/Protoforge Resources | -11 -10 -10 -9 -9 -9 -9 -9 -6 -6 -6 -6 -6 -6 -6 -5 -5 -5 -5 -5 -5 -5 -4 -4 -4 -4 -4 -4 -4 -3 -3 -3 -2 -2 -2 ----------- Run | Yrd Mat Min Mat Sto Gar Rec Scr Fac Was Fac Low Low Zio Dee Pro Fac Was Fac Upp Upp War Pro Fac Was Fac Upp Upp Zhi Pro Res Tes Res Qua Frg Matter Collected 18229 | 461 511 337 385 1230 416 383 426 924 109 132 21 274 168 66 284 890 433 430 40 . 255 . 432 280 117 557 257 62 159 568 286 365 201 6770 Remotely . | . . . . . . . . . . . . . . . . . . . . . . . . . . . . . . . . . . . Salvage Created 14799 | 293 617 26 531 2084 673 587 . 797 225 98 52 153 . 23 242 1165 711 558 247 . . . 23 350 258 107 152 219 189 268 286 232 476 3157 Parts 674 | 25 51 5 33 116 29 19 . 31 6 6 6 12 . . 9 47 14 15 12 . . . 2 7 10 3 1 4 9 2 15 12 15 158 Haulers Intercepted 15 | . 2 . 1 6 . . . . . 1 . . . . . 1 . 2 . . . . . . 1 . . . . 1 . . . . Recyclers Shooed 7 | . 2 . 2 1 . 1 . . . . . . . . . . . . . . . . . . . . . . . . . . 1 . Parts Field Recycled . | . . . . . . . . . . . . . . . . . . . . . . . . . . . . . . . . . . . Retrieved Matter . | . . . . . . . . . . . . . . . . . . . . . . . . . . . . . . . . . . . Parts Self-Destructed 51 | . . . . . . . . . . . 5 27 2 . 1 . . . 1 . . . . . . 8 . 4 3 . . . . . Prevented 5 | . . . . . . . . . . . . . . . . . . . . . . . . . . 5 . . . . . . . . Parts Restored . | . . . . . . . . . . . . . . . . . . . . . . . . . . . . . . . . . . . Kills | -11 -10 -10 -9 -9 -9 -9 -9 -6 -6 -6 -6 -6 -6 -6 -5 -5 -5 -5 -5 -5 -5 -4 -4 -4 -4 -4 -4 -4 -3 -3 -3 -2 -2 -2 ------- Run | Yrd Mat Min Mat Sto Gar Rec Scr Fac Was Fac Low Low Zio Dee Pro Fac Was Fac Upp Upp War Pro Fac Was Fac Upp Upp Zhi Pro Res Tes Res Qua Frg Combat Hostiles Destroyed 141 | . 13 6 8 25 11 4 . 4 . 1 4 10 . 5 2 8 2 5 . . . . . . . . . . 1 . . . . 32 Melee 5 | . . . . . . . . 1 . . . . . . . 4 . . . . . . . . . . . . . . . . . . Guns 77 | . 13 . 7 25 11 4 . 3 . . . . . . 2 4 2 5 . . . . . . . . . . . . . . . 1 Cannons 32 | . . . 1 . . . . . . . . . . . . . . . . . . . . . . . . . . . . . . 31 AOE 26 | . . 6 . . . . . . . 1 4 10 . 5 . . . . . . . . . . . . . . . . . . . . Classes Destroyed 26 | 3 6 . 2 . 2 . . 2 1 . . . . 1 . . 1 . 1 . . . . . . . . . 1 . . . . 6 Worker 23 | 2 2 . 4 9 . . . 1 . 1 . . . . . 2 . . . . . . . . . . . . . . . 2 . . Builder 7 | . 1 . 3 1 . . . . . . . . . . . 1 . . . . . . . . . . . . . . . 1 . . Tunneler 9 | 9 . . . . . . . . . . . . . . . . . . . . . . . . . . . . . . . . . . Hauler 16 | . 2 . 1 6 . . . . . 1 . . . . . 1 . 2 . . . . . . 1 . . . . 1 . . . 1 Recycler 33 | 1 1 . 2 7 . 5 . 4 . . . . . . . 5 . 1 . . . . . . 1 . . . . 1 1 1 3 . Mechanic 5 | . . . . . . . . 2 . . . . . . . . . . . . . . . . 1 . . . . . . . . 2 Operator 8 | . 1 . . 2 . . . . . . . . . . . . . 1 . . . . 1 . 1 . . . . . . . 1 1 Drone 2 | . . . . . . . . . . . . . . . . . . . . . . . . . . . . . 1 . . . . 1 Watcher 11 | . 1 . . 1 . . . 2 . . . . . . . 1 . 1 . . . . . . . . . . . 1 2 1 . 1 Swarmer 50 | . 9 6 4 4 1 . . 3 . 1 4 8 . . 2 3 . 4 . . . . . . . . . . . . . . . 1 Grunt 35 | . 4 . 2 14 5 . . . . . . 1 . . . . . 1 . . . . . . . . . . . . . . . 8 Brawler 4 | . . . . . 1 . . . . . . . . . . . . . . . . . . . . . . . . . . . . 3 Duelist 1 | . . . 1 . . . . . . . . . . . . . . . . . . . . . . . . . . . . . . . Protector 4 | . . . . . . . . . . . . . . . . . . . . . . . . . . . . . . . . . . 4 Sentry 21 | . . . 1 7 5 4 . . . . . . . . . . . . . . . . . . . . . . . . . . . 4 Specialist 2 | . . . . . . . . . . . . . . . . . . . . . . . . . . . . . . . . . . 2 Hunter 3 | . . . . . 1 . . . . . . 1 . . . . . . . . . . . . . . . . . . . . . 1 Programmer 8 | . . . . . . . . 1 . . . . . . . 5 . . . . . . . . . . . . . . . . . 2 Compactor 2 | . . . . . . . . . . . . . . . . . 2 . . . . . . . . . . . . . . . . . Hotshot 4 | . . . . . . . . . . . . . . . . . . . . . . . . . . . . . . . . . . 4 Executioner 2 | . . . . . . . . . . . . . . . . . . . . . . . . . . . . . . . . . . 2 Elite 1 | . . . . . . . . . . . . . . . . . . . . . . . . . . . . . . . . . . 1 Scrapoid 2 | . . . . . . . . . . . . . . . . . . . . . . . . . . . . . . . . . . 2 Scraphulk 1 | . . . . . . . . . . . . . . . . . . . . . . . . . . . . . . . . . . 1 Decomposer 1 | . . . . . . . . . . . . . . . 1 . . . . . . . . . . . . . . . . . . . Samaritan 9 | . . . . . . . . . . . . . . . . . . . 4 . . . . . . 1 . . 4 . . . . . Assembled 5 | . . . . . . . . . . . . . . 5 . . . . . . . . . . . . . . . . . . . . Wasp 2 | . . . . . . . . . 2 . . . . . . . . . . . . . . . . . . . . . . . . . Savage 1 | . . . . . . . . . . . . . . . . . . . 1 . . . . . . . . . . . . . . . Martyr 4 | . . . . . . . . . 2 . . . . . . . 2 . . . . . . . . . . . . . . . . . Best Kill Streak 10 | 4 6 3 6 6 7 4 . 3 . 1 4 10 . 3 2 3 1 4 . . . . 1 . 2 . . . 1 2 2 4 2 6 Combat Bots Only 10 | . 5 3 4 5 7 2 . 3 . 1 4 10 . 3 2 3 1 4 . . . . . . . . . . 1 . . . . 6 Max Kills in Single Turn 4 | 1 2 2 2 3 2 2 . 1 1 1 2 4 . 2 1 2 1 2 1 . . . 1 . 1 1 . . 1 1 1 1 1 3 Gunslinging 1 | . . . 1 . 1 . . . . . . . . . . 1 . 1 . . . . . . . . . . . . . . . . Exploded 4 | . . 2 . . . . . . . 1 2 4 . 2 . . . . . . . . . . . . . . . . . . . . Melee 1 | . . . . . . . . 1 . . . . . . . 1 . . . . . . . . . . . . . . . . . . Uniques/NPCs Destroyed . | . . . . . . . . . . . . . . . . . . . . . . . . . . . . . . . . . . . Combat | -11 -10 -10 -9 -9 -9 -9 -9 -6 -6 -6 -6 -6 -6 -6 -5 -5 -5 -5 -5 -5 -5 -4 -4 -4 -4 -4 -4 -4 -3 -3 -3 -2 -2 -2 -------- Run | Yrd Mat Min Mat Sto Gar Rec Scr Fac Was Fac Low Low Zio Dee Pro Fac Was Fac Upp Upp War Pro Fac Was Fac Upp Upp Zhi Pro Res Tes Res Qua Frg Hostile Shots Fired 817 | . 71 13 21 82 65 8 . 80 . 7 8 38 . 48 8 73 . 50 . 2 2 16 36 . 5 21 . . . 16 2 3 6 136 Missed 304 | . 20 2 3 12 10 . . 46 . 4 5 14 . 27 2 29 . 17 . 2 2 6 17 . 1 12 . . . 12 2 1 3 55 Hits 513 | . 51 11 18 70 55 8 . 34 . 3 3 24 . 21 6 44 . 33 . . . 10 19 . 4 9 . . . 4 . 2 3 81 Melee 10 | . . . 6 . . . . . . . 1 . . . . . . . . . . . . . . . . . . . . . . 3 Projectile 503 | . 51 11 12 70 55 8 . 34 . 3 2 24 . 21 6 44 . 33 . . . 10 19 . 4 9 . . . 4 . 2 3 78 AOE 1 | . . . . . . . . . . . . . . . . . . . . . . . . . . . . . . . . . . 1 Critical Strikes 16 | . . . 1 2 2 . . 2 . 1 . . . . . 2 . 1 . . . . . . 1 1 . . . . . . . 3 Actively Blocked 5 | . . . . . . . . . . . . . . . . . . . . . . . . . 1 1 . . . . . . . 3 Part Disruptions 1 | . . . . . . . . . . . . . . . . . . . . . . . 1 . . . . . . . . . . . Damage Taken 9894 | . 474 151 318 853 781 120 . 504 13 56 58 401 . 671 85 1185 24 678 . . . 203 490 . 174 201 . . 44 89 . 46 70 2205 Core 1729 | . 82 29 27 149 119 . . 99 . . . 57 . 105 28 278 . 80 . . . 61 105 . . 57 . . 44 44 . 25 . 340 Absorbed by Shields 78 | . . . . . . . . 8 . . . . . . . . . . . . . . . . . . . . . . . . . 70 Redirected to Shielding 87 | . . . . . . . . . . . . 25 . 62 . . . . . . . . . . . . . . . . . . . . Regen/Repaired (Parts) 1391 | . 127 . . 123 . . . 37 125 . . . 222 . . 42 107 90 . . 1 . 157 95 18 . . . . 63 . . . 184 Core Remaining (%) 69 | 100 . 55 . . . . 26 . . . . . . . 66 . . . . . . 58 . . . . . . 82 . 96 . . 74 Volleys Fired 612 | 35 75 9 40 87 24 15 . 10 2 2 2 10 . 9 27 14 15 26 13 . 1 . 6 14 10 9 . . 2 2 3 3 6 141 Largest 4 | 2 2 1 4 4 4 4 . 2 1 1 1 1 . 1 2 3 2 2 1 . 1 . 1 1 1 1 . . 1 1 1 1 1 2 Hottest 200 | 40 100 100 170 128 92 92 . 63 40 39 39 39 . 39 63 101 68 98 98 . 35 . 60 35 44 51 . . 51 51 60 50 90 200 Shots Fired 1234 | 70 146 9 137 329 96 60 . 19 3 2 2 10 . 9 31 24 30 46 13 . 1 . 6 14 10 9 . . 2 2 3 3 6 142 Gun 989 | 70 142 . 130 329 96 60 . 19 1 . . . . . 23 15 30 40 . . 1 . 2 14 . . . . . . . . 3 14 Cannon 201 | . . . 7 . . . . . 2 . . . . . . 9 . 6 13 . . . 4 . 10 9 . . 2 2 3 3 3 128 Launcher 27 | . . 5 . . . . . . . 2 2 10 . 8 . . . . . . . . . . . . . . . . . . . . Special 17 | . 4 4 . . . . . . . . . . . 1 8 . . . . . . . . . . . . . . . . . . . Kinetic 1038 | 70 121 . 110 318 96 60 . 19 3 . . . . . 23 21 30 40 . . 1 . 4 14 10 9 . . 2 2 2 . . 83 Thermal 145 | . 4 4 27 11 . . . . . . . . . . 8 3 . 6 13 . . . . . . . . . . . 1 3 6 59 Explosive 27 | . . 5 . . . . . . . 2 2 10 . 8 . . . . . . . . . . . . . . . . . . . . Electromagnetic 21 | . 21 . . . . . . . . . . . . . . . . . . . . . . . . . . . . . . . . . Entropic 2 | . . . . . . . . . . . . . . . . . . . . . . . 2 . . . . . . . . . . . Robot Hit Streak 16 | 11 8 . 8 16 15 7 . 2 . . . . . . 6 6 7 5 . . 1 . . 5 . . . . . . . . 3 10 Robot Miss Streak 15 | 3 11 . 12 10 4 6 . 4 5 . . . . 7 9 2 3 5 . . . . . 1 . . . . . . . . . 15 Penetration Max 2 | . . . . . . . . . . . . . . . 1 . 1 1 . . . . . . . . . . . . . . . 2 Secondary Targets 12 | . . . 1 . 6 . . 1 . . . . . . 1 2 . 1 . . . . . . . . . . . . . . . . Max Gunslinging Chain 2 | . . . 1 . 1 . . 1 . . . . . . 1 2 . 1 . . . . . . . . . . . . . . . . Shots Hit Robots 771 | 42 75 . 80 177 61 35 3 26 10 3 1 . . . 16 36 26 30 8 . 1 . 3 13 6 2 3 4 6 15 16 6 8 59 Core Hits 453 | 20 32 9 47 88 24 15 . 10 3 4 5 13 . 7 10 10 7 12 5 . . . 1 2 3 2 2 1 2 3 6 4 5 101 Critical Kills 51 | . . . . . . . . 2 . . . . . . 1 1 2 3 . . . . . 1 . . . . . . . . . 41 Critical Parts Destroyed 57 | . 1 . . 2 . . . . . . . . . . 2 1 2 2 . . . . . . . . . . . . . . . 47 Critical Strikes 136 | . 3 . . 2 . 1 . 3 . . . . . . 4 4 10 6 . . . . . 3 1 1 1 . 1 2 1 1 . 92 Destroy 117 | . 1 . . 2 . 1 . 2 . . . . . . 3 1 8 4 . . . . . 3 . . . . . . . . . 92 Corrupt 2 | . 2 . . . . . . . . . . . . . . . . . . . . . . . . . . . . . . . . . Smash 4 | . . . . . . . . . . . . . . . . 1 2 1 . . . . . . . . . . . . . . . . Sever 5 | . . . . . . . . 1 . . . . . . 1 2 . . . . . . . . . . . . . . 1 . . . Impale 8 | . . . . . . . . . . . . . . . . . . 1 . . . . . . 1 1 1 . 1 2 . 1 . . Melee Attacks 489 | . . . . 4 16 . 3 48 10 26 3 5 . . . 80 8 36 14 . 7 . 29 2 21 12 12 6 25 43 38 19 9 13 Impact 72 | . . . . 4 16 . . . . . . . . . . 28 8 16 . . . . . . . . . . . . . . . . Slashing 233 | . . . . . . . . 48 10 26 3 5 . . . 51 . 12 1 . 2 . . . . 2 4 3 8 14 12 10 9 13 Piercing 179 | . . . . . . . . . . . . . . . . . . 8 13 . 5 . 28 2 21 10 8 3 17 29 26 9 . . Sneak Attacks 80 | . . . . 1 . . 3 9 10 2 . . . . . 9 8 5 8 . . . 1 1 4 1 . . 5 4 1 5 3 . Combat Hostiles . | . . . . . . . . . . . . . . . . . . . . . . . . . . . . . . . . . . . Follow-up Attacks 16 | . . . . . . . . . 2 . . . . . . 2 . . . . . . . . . . 1 1 2 5 3 . . . Damage Inflicted 21921 | 445 1065 280 902 2601 998 541 . 1448 1090 303 487 885 . 458 186 2158 774 1210 686 . 10 . 139 250 421 125 241 256 452 824 1058 460 458 710 Guns 7838 | 445 1017 . 815 2565 908 541 . 117 . . . . . . 127 187 298 519 . . 10 . . 93 . . . . . . . . 80 116 Cannons 711 | . . . 87 . . . . . 30 . . . . . . . . . . . . . . . . . . . . . . . . 594 Explosions 2095 | . 48 280 . . . . . . . 55 369 885 . 458 . . . . . . . . . . . . . . . . . . . . Melee 11218 | . . . . 36 90 . . 1331 1060 248 118 . . . . 1971 476 691 686 . . . 139 157 421 125 241 256 452 824 1058 460 378 . Ramming . | . . . . . . . . . . . . . . . . . . . . . . . . . . . . . . . . . . . Kinetic 7931 | 445 821 . 632 2493 908 541 . 117 30 . . . . . 127 187 298 519 . . 10 . . 93 . . . . . . . . . 710 Thermal 529 | . 48 . 270 72 . . . . . . . . . . 59 . . . . . . . . . . . . . . . . . 80 . Explosive 2047 | . . 280 . . . . . . . 55 369 885 . 458 . . . . . . . . . . . . . . . . . . . . Electromagnetic 196 | . 196 . . . . . . . . . . . . . . . . . . . . . . . . . . . . . . . . . Impact 1268 | . . . . 36 90 . . . . . . . . . . 408 476 258 . . . . . . . . . . . . . . . . Slashing 5579 | . . . . . . . . 1331 1060 248 118 . . . . 1563 . 174 70 . . . . . . . 64 72 . 146 160 195 378 . Piercing 4371 | . . . . . . . . . . . . . . . . . . 259 616 . . . 139 157 421 125 177 184 452 678 898 265 . . Highest Corruption 6 | . . . . . 1 1 . 2 2 2 2 2 2 . . 6 5 6 . . . 2 2 2 2 2 2 2 2 1 1 . . 5 Average Corruption 2 | . . . . . 1 1 . 1 2 2 2 2 2 . . 2 5 5 . . . 1 1 2 1 1 2 2 2 1 1 . . 4 Corruption Purged 12 | . . . . . . . . . . . . . . . . 4 . 6 . . . . . . 2 . . . . . . . . . Corruption Blocked . | . . . . . . . . . . . . . . . . . . . . . . . . . . . . . . . . . . . Effects 165 | . . . . . 5 9 . 8 7 10 2 8 . . . 17 8 15 . . . 1 4 1 4 1 4 4 2 1 3 . . 51 Message Errors 43 | . . . . . 2 4 . 2 1 4 . 1 . . . 5 . 4 . . . . 1 . 4 . 1 1 . 1 1 . . 11 Matter Fused 36 | . . . . . 2 . . 1 . 4 1 2 . . . 4 . 5 . . . . 1 1 . 1 . . 1 . 1 . . 12 Heat Flow Errors 30 | . . . . . . 2 . 2 2 1 . 3 . . . 2 2 2 . . . . 1 . . . 1 2 . . 1 . . 9 Energy Discharges 16 | . . . . . . 1 . . 1 1 1 1 . . . 1 1 1 . . . 1 1 . . . 1 . . . . . . 5 Parts Rejected 1 | . . . . . . . . . 1 . . . . . . . . . . . . . . . . . . . . . . . . . Parts Fused 3 | . . . . . . 1 . . . . . . . . . . . 1 . . . . . . . . . . 1 . . . . . Data Loss (minor) 21 | . . . . . . . . 3 1 . . 1 . . . 4 3 2 . . . . . . . . 1 . . . . . . 6 Data Loss (major) 7 | . . . . . 1 . . . . . . . . . . 1 . . . . . . . . . . . 1 . . . . . 4 Misfires 2 | . . . . . . . . . 1 . . . . . . . 1 . . . . . . . . . . . . . . . . . Alerts 3 | . . . . . . 1 . . . . . . . . . . . . . . . . . . . . . . . . . . . 2 Weapon Failures 3 | . . . . . . . . . . . . . . . . . 1 . . . . . . . . . . . . . . . . 2 Overload Shots 7 | . . . . . . . . . . . . . . . . . . . . . . . . . . . . . . . . . . 7 Effects 1 | . . . . . . . . . . . . . . . . . . . . . . . . . . . . . . . . . . 1 Heat Surge 1 | . . . . . . . . . . . . . . . . . . . . . . . . . . . . . . . . . . 1 Overflow Damage 2866 | . . 2 . 19 50 . . 298 129 84 107 23 . 40 . 703 118 245 65 . . . . 15 205 . 78 90 133 208 . 175 79 . Projectiles . | . . . . . . . . . . . . . . . . . . . . . . . . . . . . . . . . . . . Explosions 111 | . . 2 . . . . . . . . 46 23 . 40 . . . . . . . . . . . . . . . . . . . . Melee 2755 | . . . . 19 50 . . 298 129 84 61 . . . . 703 118 245 65 . . . . 15 205 . 78 90 133 208 . 175 79 . Knockbacks 17 | . . . . . 1 . . . . . . . . . . 1 3 1 . . . . . . . . . . . . . . . 11 Impact 6 | . . . . . 1 . . . . . . . . . . 1 3 1 . . . . . . . . . . . . . . . . Kinetic 11 | . . . . . . . . . . . . . . . . . . . . . . . . . . . . . . . . . . 11 Secondary . | . . . . . . . . . . . . . . . . . . . . . . . . . . . . . . . . . . . Self-Inflicted Damage 63 | . . 63 . . . . . . . . . . . . . . . . . . . . . . . . . . . . . . . . Shots 2 | . . 2 . . . . . . . . . . . . . . . . . . . . . . . . . . . . . . . . Rammed . | . . . . . . . . . . . . . . . . . . . . . . . . . . . . . . . . . . . Targets Rammed . | . . . . . . . . . . . . . . . . . . . . . . . . . . . . . . . . . . . Kicked . | . . . . . . . . . . . . . . . . . . . . . . . . . . . . . . . . . . . Crushed . | . . . . . . . . . . . . . . . . . . . . . . . . . . . . . . . . . . . Highest Temperature 358 | . 64 96 358 347 255 257 . 248 188 160 . 233 173 186 16 212 213 251 171 126 192 258 159 126 72 . 230 160 . 101 168 . 225 195 Average Temperature 49 | . 22 43 108 58 97 48 . 115 93 78 . 99 93 69 8 21 39 41 68 36 69 138 41 52 19 . 126 82 . 15 27 . 123 72 Received Heat Transfer 1628 | . 138 . 36 351 288 36 . 126 9 45 . 18 . 200 . 36 . 162 . . . . 33 . 9 9 . . . . . . . 132 Effects 3 | . . . 1 1 . . . 1 . . . . . . . . . . . . . . . . . . . . . . . . . . Energy Bleed 1 | . . . . . . . . 1 . . . . . . . . . . . . . . . . . . . . . . . . . . Matter Decay 1 | . . . 1 . . . . . . . . . . . . . . . . . . . . . . . . . . . . . . . Damage (minor) 1 | . . . . 1 . . . . . . . . . . . . . . . . . . . . . . . . . . . . . . Siege Activations . | . . . . . . . . . . . . . . . . . . . . . . . . . . . . . . . . . . . Martial Activations . | . . . . . . . . . . . . . . . . . . . . . . . . . . . . . . . . . . . Shielding Activations . | . . . . . . . . . . . . . . . . . . . . . . . . . . . . . . . . . . . Robots Disrupted . | . . . . . . . . . . . . . . . . . . . . . . . . . . . . . . . . . . . Combat Hostiles . | . . . . . . . . . . . . . . . . . . . . . . . . . . . . . . . . . . . Robots Corrupted 6 | . . . . . 1 . . . . . . . . . . 2 1 2 . . . . . . . . . . . . . . . . Combat Hostiles . | . . . . . . . . . . . . . . . . . . . . . . . . . . . . . . . . . . . Parts Fried 16 | . 1 . . 2 1 . . . . . . . . . . 8 . 4 . . . . . . . . . . . . . . . . Impact Corruptions 23 | . . . . 1 2 . . . . . . . . . . 11 2 7 . . . . . . . . . . . . . . . . Robots Melted . | . . . . . . . . . . . . . . . . . . . . . . . . . . . . . . . . . . . Combat Hostiles . | . . . . . . . . . . . . . . . . . . . . . . . . . . . . . . . . . . . Parts Melted . | . . . . . . . . . . . . . . . . . . . . . . . . . . . . . . . . . . . Heat Transferred 896 | . 100 . 410 90 . . . . . . . . . . 185 . . . . . . . . . . . . . . . . . 111 . Parts Sabotaged 2 | . . . . . . . . . . . . . . . . . . . . . . . . . . . . . . . . . . 2 Parts Stolen . | . . . . . . . . . . . . . . . . . . . . . . . . . . . . . . . . . . . Parts Stripped . | . . . . . . . . . . . . . . . . . . . . . . . . . . . . . . . . . . . Power Chain Reactions 2 | . 1 . . . . . . . . . . . . . . . . . . . . . . . . . . . . 1 . . . . Alert | -11 -10 -10 -9 -9 -9 -9 -9 -6 -6 -6 -6 -6 -6 -6 -5 -5 -5 -5 -5 -5 -5 -4 -4 -4 -4 -4 -4 -4 -3 -3 -3 -2 -2 -2 ------- Run | Yrd Mat Min Mat Sto Gar Rec Scr Fac Was Fac Low Low Zio Dee Pro Fac Was Fac Upp Upp War Pro Fac Was Fac Upp Upp Zhi Pro Res Tes Res Qua Frg Maximum Alert Level 5 | . . . . 1 2 1 . 2 . 1 . . . . . . . 2 . . . . 1 . 3 . . . . 1 1 . . 5 Low Security (%) 59 | 100 100 100 100 76 14 81 . 19 100 12 . . . . . 100 100 11 . . . . 97 100 5 . . . . 11 87 100 100 5 Level 1 21 | . . . . 23 52 18 . 60 . 87 . . . . . . . 87 . . . . 2 . 32 . . . . 88 12 . . 9 Level 2 5 | . . . . . 33 . . 20 . . . . . . . . . . . . . . . . 61 . . . . . . . . 5 Level 3 5 | . . . . . . . . . . . . . . . . . . . . . . . . . . . . . . . . . . 32 Level 4 4 | . . . . . . . . . . . . . . . . . . . . . . . . . . . . . . . . . . 26 Level 5 3 | . . . . . . . . . . . . . . . . . . . . . . . . . . . . . . . . . . 20 High Security . | . . . . . . . . . . . . . . . . . . . . . . . . . . . . . . . . . . . Max Security . | . . . . . . . . . . . . . . . . . . . . . . . . . . . . . . . . . . . Peak Influence 2031 | 15 163 91 118 286 524 265 . 431 99 357 . . . . . 158 54 419 . . . . 211 63 735 . . . . 340 216 149 192 2031 Initial 300 | . 3 . 5 . 63 235 . . 99 . . . . . . . 54 . . . . . . 63 . . . . . 300 160 105 83 102 Average 297 | 2 35 21 40 129 338 122 . 251 28 279 . . . . . 71 9 298 . . . . 105 9 442 . . . . 265 123 108 153 1117 Influence Increases 12804 | 60 461 167 251 874 651 270 . 929 15 792 110 305 . . 85 742 4 1065 . 15 15 . 548 . 1299 50 135 15 5 592 378 114 169 2688 Destroy 0b10 Robot/C 3640 | . 260 120 160 500 340 80 . 80 . 280 80 200 . . 40 160 . 300 . . . . . . 440 . . . . . 60 . . 540 Destroy 0b10 Robot/NC 645 | 60 40 . 50 130 5 25 . 45 . 20 5 . . . 5 50 . 25 . . . . 5 . 25 5 . 15 5 15 25 25 20 45 Destroy Leader 740 | . 66 20 32 144 10 . . 24 . 42 10 30 . . 10 44 . 86 . . . . . . 80 . . . . 4 14 2 . 122 Allied During Kill 794 | . . . . . 64 . . . . 212 . . . . . . . 198 . . . . . . 320 . . . . . . . . . Successful Hack 607 | . 30 . 8 45 14 13 . 23 . 48 . . . . . 51 . 89 . . . . 38 . 68 . . . . 52 32 18 38 40 Select Force Hacks 320 | . 30 . . . . 150 . 20 . . . . . . . 50 . . . . . . 20 . . . . . . 50 . . . . Disable Machine 705 | . 15 . . . . . . 30 . 45 . . . . . 15 . 15 . . . . 45 . 90 . . . . 15 195 . 45 195 Anti-Garrison Action 350 | . . . . . 150 . . . . . . . . . . . . . . . . . . . . . . . . . . . . 200 Destroy Structure 953 | . 5 27 1 10 38 2 . 17 15 25 . . . . . 102 4 52 . . . . 50 . 36 . . . . 36 22 39 6 466 Advance Influence 300 | . . . . . . . . . . . . . . . . . . . . . . . . . . . . . . 300 . . . . Partial Spotted 900 | . . . . . . . . 120 . 60 . . . . . 90 . 45 . . . . 105 . 135 . . . . 30 30 30 60 195 Lose Combat Pursuer 2850 | . 15 . . 45 30 . . 570 . 60 15 75 . . 30 180 . 255 . 15 15 . 285 . 105 45 135 . . 90 . . . 885 Influence Decreases 10777 | 55 466 152 266 777 224 773 21 644 300 442 260 332 173 . 85 586 160 646 394 40 15 . 366 182 782 431 137 149 5 306 476 153 136 843 Entered New Map 1975 | . 2 . 10 . 34 289 21 . 186 . 130 38 173 . . . 102 . 156 6 . . . 119 . 193 27 134 . . 126 83 66 80 Time Decay 6598 | 55 454 152 246 587 . 474 . 424 94 222 120 254 . . 85 526 58 402 198 34 15 . 256 63 302 238 110 15 5 206 160 70 70 703 Search Patrol Dispatched 400 | . . . . . . . . 200 . . . . . . . . . . . . . . 100 . . . . . . 100 . . . . Lost Part 330 | . 10 . 10 40 30 10 . 20 . . 10 40 . . . 40 . 50 . . . . 10 . . . . . . . . . . 60 Lost Ally 1024 | . . . . . 160 . . . 20 220 . . . . . 20 . 194 40 . . . . . 330 . . . . . 40 . . . Purge Threat 450 | . . . . 150 . . . . . . . . . . . . . . . . . . . . 150 . . . . . 150 . . . Squads Dispatched 117 | . 3 . . 2 . . . 20 . 8 . . . . . 13 . 16 . . . . 17 . 15 . . . . 5 4 2 1 11 Investigation 67 | . 2 . . 1 . . . 13 . 6 . . . . . 7 . 9 . . . . 12 . 6 . . . . 3 . . . 8 Extermination 23 | . . . . . . . . 4 . 2 . . . . . 5 . 2 . . . . 3 . 2 . . . . 1 1 1 1 1 Reinforcement 24 | . 1 . . 1 . . . 3 . . . . . . . 1 . 5 . . . . 2 . 4 . . . . 1 3 1 . 2 Assault 1 | . . . . . . . . . . . . . . . . . . . . . . . . . 1 . . . . . . . . . Garrison 2 | . . . . . . . . . . . . . . . . . . . . . . . . . 2 . . . . . . . . . Intercept . | . . . . . . . . . . . . . . . . . . . . . . . . . . . . . . . . . . . Searches Triggered 4 | . . . . . . . . 2 . . . . . . . . . . . . . . 1 . . . . . . 1 . . . . Unchained Authorized 1 | . . . . . . . . . . . . . . . . . . . . . . . . . . . . . . 1 . . . . Construction Impeded . | . . . . . . . . . . . . . . . . . . . . . . . . . . . . . . . . . . . Haulers Reinforced 4 | . . . . . . . . . . . . . . . . . . 2 . . . . . . 1 . . . . 1 . . . . Active Scanning Responses . | . . . . . . . . . . . . . . . . . . . . . . . . . . . . . . . . . . . Cargo Convoy Interrupts . | . . . . . . . . . . . . . . . . . . . . . . . . . . . . . . . . . . . Stealth | -11 -10 -10 -9 -9 -9 -9 -9 -6 -6 -6 -6 -6 -6 -6 -5 -5 -5 -5 -5 -5 -5 -4 -4 -4 -4 -4 -4 -4 -3 -3 -3 -2 -2 -2 --------- Run | Yrd Mat Min Mat Sto Gar Rec Scr Fac Was Fac Low Low Zio Dee Pro Fac Was Fac Upp Upp War Pro Fac Was Fac Upp Upp Zhi Pro Res Tes Res Qua Frg Distress Signals 24 | . 2 . 2 3 . . . 2 . . . . . . . . . 4 . . 1 . 1 . 3 . . . . 1 1 . . 4 Communications Jammed 78 | . . . . . . . . . . . . . . . . 7 . 18 . . . . 4 . . . . . 2 . 3 7 4 33 Distress Signals 76 | . . . . . . . . . . . . . . . . 7 . 18 . . . . 4 . . . . . . . 3 7 4 33 Times Spotted 555 | . 39 6 15 31 16 3 . 51 3 18 7 15 . 13 4 32 5 44 . 1 20 3 36 . 25 6 8 . 2 16 10 8 10 108 Peak Tracking Total 25 | . 6 3 4 6 9 2 . 16 3 4 5 10 . 7 4 5 2 6 . 1 7 3 8 . 5 4 6 . 2 7 3 7 6 25 Tactical Retreats 86 | . 1 . . 3 1 . . 11 . 2 1 3 . 1 1 7 . 9 . 1 1 . 7 . 5 3 4 . . 2 . . . 23 Traps | -11 -10 -10 -9 -9 -9 -9 -9 -6 -6 -6 -6 -6 -6 -6 -5 -5 -5 -5 -5 -5 -5 -4 -4 -4 -4 -4 -4 -4 -3 -3 -3 -2 -2 -2 ------- Run | Yrd Mat Min Mat Sto Gar Rec Scr Fac Was Fac Low Low Zio Dee Pro Fac Was Fac Upp Upp War Pro Fac Was Fac Upp Upp Zhi Pro Res Tes Res Qua Frg Traps Triggered 23 | . 1 . . 3 3 . . 4 . . . . . . . 1 . 3 . . . . 3 . . . . . 1 . . 3 . 1 Indirectly . | . . . . . . . . . . . . . . . . . . . . . . . . . . . . . . . . . . . Trap Hack Attempts 37 | . . . . 8 24 . . . . . . . . . . . . . . . . . 5 . . . . . . . . . . . Triggered . | . . . . . . . . . . . . . . . . . . . . . . . . . . . . . . . . . . . Disarmed 2 | . . . . . 1 . . . . . . . . . . . . . . . . . 1 . . . . . . . . . . . Reprogrammed 2 | . . . . 2 . . . . . . . . . . . . . . . . . . . . . . . . . . . . . . Reused . | . . . . . . . . . . . . . . . . . . . . . . . . . . . . . . . . . . . Traps Extracted . | . . . . . . . . . . . . . . . . . . . . . . . . . . . . . . . . . . . Installed . | . . . . . . . . . . . . . . . . . . . . . . . . . . . . . . . . . . . Triggered . | . . . . . . . . . . . . . . . . . . . . . . . . . . . . . . . . . . . Machines | -11 -10 -10 -9 -9 -9 -9 -9 -6 -6 -6 -6 -6 -6 -6 -5 -5 -5 -5 -5 -5 -5 -4 -4 -4 -4 -4 -4 -4 -3 -3 -3 -2 -2 -2 ---------- Run | Yrd Mat Min Mat Sto Gar Rec Scr Fac Was Fac Low Low Zio Dee Pro Fac Was Fac Upp Upp War Pro Fac Was Fac Upp Upp Zhi Pro Res Tes Res Qua Frg Machines Disabled 55 | . 1 . . . 1 . . 2 . 3 1 . 3 2 . 1 . 1 . . 1 . 3 . 6 . . . . 1 13 . 3 13 Max in Single Turn 1 | . 1 . . . 1 . . 1 . 1 1 . 1 1 . 1 . 1 . . 1 . 1 . 1 . . . . 1 1 . 1 1 Garrison Access 9 | . . . . . . . . 1 . 2 . . . . . 2 . 1 . . . . . . 1 . . . . . 1 . . 1 Garrison Relay 1 | . . . . . 1 . . . . . . . . . . . . . . . . . . . . . . . . . . . . . Machines Repaired . | . . . . . . . . . . . . . . . . . . . . . . . . . . . . . . . . . . . Machines Dismantled 6 | . . . . . . . . . . . . . 3 . . . . . . . 1 . . . 2 . . . . . . . . . Machines Sabotaged . | . . . . . . . . . . . . . . . . . . . . . . . . . . . . . . . . . . . Overloaded Fab Kills 4 | . . . . . . . . . . . . . . . . 4 . . . . . . . . . . . . . . . . . . Hacking | -11 -10 -10 -9 -9 -9 -9 -9 -6 -6 -6 -6 -6 -6 -6 -5 -5 -5 -5 -5 -5 -5 -4 -4 -4 -4 -4 -4 -4 -3 -3 -3 -2 -2 -2 --------- Run | Yrd Mat Min Mat Sto Gar Rec Scr Fac Was Fac Low Low Zio Dee Pro Fac Was Fac Upp Upp War Pro Fac Was Fac Upp Upp Zhi Pro Res Tes Res Qua Frg Machines Accessed 209 | . 7 . 1 14 2 10 3 25 . 20 . . 1 . . 22 . 21 2 1 3 . 19 . 15 . 2 5 . 9 11 2 5 9 Terminals 88 | . 5 . 1 9 2 4 . 9 . 10 . . . . . 10 . 9 . . . . 6 . 7 . . . . 3 5 1 3 4 Fabricators 24 | . . . . . . . . 5 . 2 . . . . . 3 . 3 . . . . 3 . 2 . . . . 3 2 1 . . Repair Stations 14 | . 1 . . 2 . . . 1 . . . . . . . 2 . 3 . . . . 2 . . . . . . 1 . . 1 1 Recycling Units 40 | . 1 . . 2 . 6 . 6 . 4 . . . . . 3 . 2 . . . . 7 . 5 . . . . 1 . . . 3 Scanalyzers 15 | . . . . . . . . 2 . 2 . . . . . 2 . 3 . . . . 1 . . . . . . 1 3 . 1 . Garrison Access 11 | . . . . 1 . . . 2 . 2 . . . . . 2 . 1 . . . . . . 1 . . . . . 1 . . 1 Total Hacks 515 | . 19 . 3 39 6 26 13 58 . 43 . . 6 . . 66 . 43 6 1 8 . 43 . 38 . 2 17 . 19 25 5 9 20 Successful 296 | . 11 . 1 28 1 11 13 27 . 18 . . 6 . . 32 . 24 6 1 8 . 29 . 23 . 2 17 . 12 9 3 6 8 Failed 216 | . 8 . 2 10 5 15 . 31 . 24 . . . . . 34 . 19 . . . . 14 . 15 . . . . 7 15 2 3 12 Catastrophic 39 | . 1 . 1 2 . 2 . 3 . 7 . . . . . 9 . 2 . . . . 4 . . . . . . . 3 . . 5 Database Lockouts 3 | . . . . 1 . . . . . 1 . . . . . . . . . . . . . . . . . . . . 1 . . . Manual 187 | . 13 . 3 14 2 8 . 26 . 10 . . . . . 28 . 15 . . . . 21 . 18 . . . . 8 8 1 1 11 Terminals 226 | . 13 . 3 27 6 14 . 18 . 23 . . . . . 35 . 21 . . . . 14 . 18 . . . . 5 12 2 6 9 Fabricators 64 | . . . . . . . . 17 . 3 . . . . . 14 . 4 . . . . 5 . 6 . . . . 9 3 3 . . Repair Stations 31 | . 5 . . 7 . . . 4 . . . . . . . 3 . 3 . . . . 3 . . . . . . 3 . . 1 2 Recycling Units 76 | . 1 . . 4 . 12 . 10 . 5 . . . . . 4 . 4 . . . . 15 . 13 . . . . 1 . . . 7 Scanalyzers 47 | . . . . . . . . 5 . 9 . . . . . 6 . 10 . . . . 6 . . . . . . 1 8 . 2 . Garrison Access 18 | . . . . 1 . . . 4 . 3 . . . . . 4 . 1 . . . . . . 1 . . . . . 2 . . 2 Terminal Hacks 119 | . 1 . 1 12 1 3 13 2 . 7 . . 6 . . 5 . 7 6 1 8 . 3 . 10 . 2 17 . 2 3 1 4 4 Record 28 | . . . . . . . 12 . . . . . . . . . . . 5 . . . . . . . 1 6 . . . . . 4 Part Schematic 26 | . . . . 5 . 3 . . . 3 . . 6 . . . . 2 . . . . 1 . 2 . . 3 . . 1 . . . Robot Analysis 4 | . . . . . . . . . . . . . . . . . . . . . . . . . . . . 4 . . . . . . Prototype ID Bank 14 | . 1 . . 2 . . . . . . . . . . . . . . . . 6 . . . . . . 4 . . . . 1 . Open Door 8 | . . . . 3 . . . . . . . . . . . . . . 1 1 2 . . . . . 1 . . . . . . . Level Access Points 2 | . . . . . . . . . . . . . . . . 1 . . . . . . . . . . . . . 1 . . . . Branch Access Points 8 | . . . 1 . . . . . . 1 . . . . . 1 . 2 . . . . 1 . 1 . . . . 1 . . . . Emergency Access Points 1 | . . . . . 1 . . . . . . . . . . . . . . . . . . . . . . . . . . . . . Machine Index 3 | . . . . . . . . . . . . . . . . 1 . 1 . . . . . . . . . . . . . . 1 . Terminal Index 4 | . . . . . . . . . . 1 . . . . . 1 . . . . . . 1 . 1 . . . . . . . . . Fabricator Index 2 | . . . . . . . . . . . . . . . . 1 . . . . . . . . 1 . . . . . . . . . Repair Station Index 1 | . . . . . . . . . . . . . . . . . . . . . . . . . . . . . . . . . 1 . Scanalyzer Index 1 | . . . . . . . . . . 1 . . . . . . . . . . . . . . . . . . . . . . . . Unreport Threat 3 | . . . . 1 . . . . . . . . . . . . . . . . . . . . 1 . . . . . 1 . . . Locate Traps 7 | . . . . . . . . . . 1 . . . . . . . 2 . . . . . . 1 . . . . . 1 1 1 . Recall Extermination 3 | . . . . . . . . 2 . . . . . . . . . . . . . . . . 1 . . . . . . . . . Recall Assault 1 | . . . . . . . . . . . . . . . . . . . . . . . . . 1 . . . . . . . . . Hauler Manifests 2 | . . . . 1 . . . . . . . . . . . . . . . . . . . . 1 . . . . . . . . . Proto ID Catalog 1 | . . . . . . . 1 . . . . . . . . . . . . . . . . . . . . . . . . . . . Fabricator Hacks 29 | . . . . . . . . 10 . . . . . . . 8 . 1 . . . . 2 . 3 . . . . 4 . 1 . . Network Status 4 | . . . . . . . . 1 . . . . . . . . . . . . . . 1 . . . . . . 1 . 1 . . Load Schematic 17 | . . . . . . . . 6 . . . . . . . 5 . 1 . . . . 1 . 2 . . . . 2 . . . . Build 8 | . . . . . . . . 3 . . . . . . . 3 . . . . . . . . 1 . . . . 1 . . . . Repair Station Hacks 15 | . 4 . . 7 . . . . . . . . . . . 1 . . . . . . 1 . . . . . . 2 . . . . Scan Component 9 | . 2 . . 4 . . . . . . . . . . . 1 . . . . . . 1 . . . . . . 1 . . . . Repair 6 | . 2 . . 3 . . . . . . . . . . . . . . . . . . . . . . . . . 1 . . . . Recycling Unit Hacks 14 | . . . . 2 . 3 . . . . . . . . . . . 1 . . . . 5 . 3 . . . . . . . . . Retrieve Components 14 | . . . . 2 . 3 . . . . . . . . . . . 1 . . . . 5 . 3 . . . . . . . . . Scanalyzer 27 | . . . . . . . . 4 . 5 . . . . . 5 . 5 . . . . 6 . . . . . . . 1 . 1 . Insert Component 11 | . . . . . . . . 1 . 3 . . . . . 1 . 3 . . . . 2 . . . . . . . . . 1 . Analyze 8 | . . . . . . . . 1 . 2 . . . . . 1 . 2 . . . . 2 . . . . . . . . . . . Retrieve Study 8 | . . . . . . . . 2 . . . . . . . 3 . . . . . . 2 . . . . . . . 1 . . . Garrison Access Hacks 9 | . . . . 1 . . . 1 . 2 . . . . . 2 . 1 . . . . . . 1 . . . . . 1 . . . Unlock Access 1 | . . . . 1 . . . . . . . . . . . . . . . . . . . . . . . . . . . . . . Seal Access 8 | . . . . . . . . 1 . 2 . . . . . 2 . 1 . . . . . . 1 . . . . . 1 . . . Unauthorized Hacks 83 | . 6 . . 6 . 5 . 10 . 4 . . . . . 11 . 9 . . . . 12 . 6 . . . . 4 4 1 1 4 Terminals 20 | . 5 . . 5 . . . . . . . . . . . 3 . 1 . . . . 1 . 1 . . . . . 3 . . 1 Track 2 | . . . . . . . . . . . . . . . . . . . . . . . . . . . . . . . 1 . . 1 Assimilate 8 | . . . . . . . . . . . . . . . . 3 . 1 . . . . 1 . 1 . . . . . 2 . . . Botnet 3 | . . . . 3 . . . . . . . . . . . . . . . . . . . . . . . . . . . . . . Operators 1 | . 1 . . . . . . . . . . . . . . . . . . . . . . . . . . . . . . . . . Skim 6 | . 4 . . 2 . . . . . . . . . . . . . . . . . . . . . . . . . . . . . . Fabricators 21 | . . . . . . . . 5 . . . . . . . 4 . 3 . . . . 3 . 1 . . . . 3 1 1 . . Prioritize 3 | . . . . . . . . . . . . . . . . 1 . . . . . . . . 1 . . . . 1 . . . . Liberate 1 | . . . . . . . . . . . . . . . . . . . . . . . . . . . . . . . 1 . . . Haulers 3 | . . . . . . . . 1 . . . . . . . . . 1 . . . . . . . . . . . . . 1 . . Overload 2 | . . . . . . . . . . . . . . . . 1 . . . . . . . . . . . . . 1 . . . . Download 2 | . . . . . . . . 1 . . . . . . . . . . . . . . 1 . . . . . . . . . . . Recompile 10 | . . . . . . . . 3 . . . . . . . 2 . 2 . . . . 2 . . . . . . 1 . . . . Repair Stations 8 | . . . . . . . . 1 . . . . . . . 1 . 3 . . . . 2 . . . . . . . . . 1 . Mechanics 1 | . . . . . . . . . . . . . . . . . . . . . . . . . . . . . . . . . 1 . Patch 7 | . . . . . . . . 1 . . . . . . . 1 . 3 . . . . 2 . . . . . . . . . . . Recycling Units 33 | . 1 . . 1 . 5 . 4 . 4 . . . . . 3 . 2 . . . . 6 . 4 . . . . 1 . . . 2 Reject 1 | . . . . 1 . . . . . . . . . . . . . . . . . . . . . . . . . . . . . . Tunnel 6 | . 1 . . . . 5 . . . . . . . . . . . . . . . . . . . . . . . . . . . . Fedlink 26 | . . . . . . . . 4 . 4 . . . . . 3 . 2 . . . . 6 . 4 . . . . 1 . . . 2 Scanalyzers . | . . . . . . . . . . . . . . . . . . . . . . . . . . . . . . . . . . . Garrison Access 1 | . . . . . . . . . . . . . . . . . . . . . . . . . . . . . . . . . . 1 Jam 1 | . . . . . . . . . . . . . . . . . . . . . . . . . . . . . . . . . . 1 Data Cores Recovered 4 | . . . . 1 . . . . . . . . . . . . . 1 . . . . . . 1 . . . . . . . . 1 Used 1 | . . . . . . . . . . . . . . . . . . . . . . . . . 1 . . . . . . . . . Hacking Detections 149 | . 6 . 1 12 2 8 . 19 . 14 . . . . . 17 . 13 . . . . 13 . 11 . . . . 8 11 2 4 8 Full Trace Events 17 | . . . . . 2 2 . 3 . 1 . . . . . . . 2 . . . . 1 . 2 . . . . . . . . 4 Feedback Events 4 | . . . . . 1 . . 2 . . . . . . . . . . . . . . . . 1 . . . . . . . . . Corruption 4 | . . . . . 1 . . 2 . . . . . . . . . . . . . . . . 1 . . . . . . . . . Feedback Blocked . | . . . . . . . . . . . . . . . . . . . . . . . . . . . . . . . . . . . Robot Schematics Acquired . | . . . . . . . . . . . . . . . . . . . . . . . . . . . . . . . . . . . Robots Built . | . . . . . . . . . . . . . . . . . . . . . . . . . . . . . . . . . . . Authchips . | . . . . . . . . . . . . . . . . . . . . . . . . . . . . . . . . . . . Time . | . . . . . . . . . . . . . . . . . . . . . . . . . . . . . . . . . . . Total Robot Build Rating . | . . . . . . . . . . . . . . . . . . . . . . . . . . . . . . . . . . . Part Schematics Acquired 36 | . . . . 5 . 3 . 2 . 5 . . 6 . . 1 . 4 . . . . 4 . 2 . . 3 . . 1 . . . Parts Built 8 | . . . . . . . . 3 . . . . . . . 3 . . . . . . . . 1 . . . . 1 . . . . Authchips 8 | . . . . . . . . 3 . . . . . . . 3 . . . . . . . . 1 . . . . 1 . . . . Time 592 | . . . . . . . . 186 . . . . . . . 248 . . . . . . . . 102 . . . . 56 . . . . Total Part Build Rating 56 | . . . . . . . . 21 . . . . . . . 21 . . . . . . . . 8 . . . . 6 . . . . Part Studies Acquired 8 | . . . . . . . . 2 . . . . . . . 3 . . . . . . 2 . . . . . . . 1 . . . Parts Repaired 6 | . 2 . . 3 . . . . . . . . . . . . . . . . . . . . . . . . . 1 . . . . Time 253 | . 52 . . 102 . . . . . . . . . . . . . . . . . . . . . . . . . 99 . . . . Parts Recycled . | . . . . . . . . . . . . . . . . . . . . . . . . . . . . . . . . . . . Recycled Matter . | . . . . . . . . . . . . . . . . . . . . . . . . . . . . . . . . . . . Retrieved Matter . | . . . . . . . . . . . . . . . . . . . . . . . . . . . . . . . . . . . Retrieved Components 34 | . . . . 16 . 7 . . . . . . . . . . . 3 . . . . 5 . 3 . . . . . . . . . Parts Scanalyzed 8 | . . . . . . . . 1 . 2 . . . . . 1 . 2 . . . . 2 . . . . . . . . . . . Part Schematics Acquired 8 | . . . . . . . . 1 . 2 . . . . . 1 . 2 . . . . 2 . . . . . . . . . . . Parts Damaged 1 | . . . . . . . . . . . . . . . . . . 1 . . . . . . . . . . . . . . . . Bothacking | -11 -10 -10 -9 -9 -9 -9 -9 -6 -6 -6 -6 -6 -6 -6 -5 -5 -5 -5 -5 -5 -5 -4 -4 -4 -4 -4 -4 -4 -3 -3 -3 -2 -2 -2 ------------ Run | Yrd Mat Min Mat Sto Gar Rec Scr Fac Was Fac Low Low Zio Dee Pro Fac Was Fac Upp Upp War Pro Fac Was Fac Upp Upp Zhi Pro Res Tes Res Qua Frg Used RIF Installer . | . . . . . . . . . . . . . . . . . . . . . . . . . . . . . . . . . . . Robots Hacked 4 | . . . . . . . 3 . . . . . . . . . . . . . . . 1 . . . . . . . . . . . Non-combat 1 | . . . . . . . . . . . . . . . . . . . . . . . 1 . . . . . . . . . . . Combat 3 | . . . . . . . 3 . . . . . . . . . . . . . . . . . . . . . . . . . . . Robot Hacks Applied 4 | . . . . . . . 3 . . . . . . . . . . . . . . . 1 . . . . . . . . . . . parse_system 3 | . . . . . . . 3 . . . . . . . . . . . . . . . . . . . . . . . . . . . find_chute 1 | . . . . . . . . . . . . . . . . . . . . . . . 1 . . . . . . . . . . . Relay Couplers Released 5 | . . . . . 5 . . . . . . . . . . . . . . . . . . . . . . . . . . . . . Machine Destruction 5 | . . . . . 5 . . . . . . . . . . . . . . . . . . . . . . . . . . . . . Fabnet Peak Effective % . | . . . . . . . . . . . . . . . . . . . . . . . . . . . . . . . . . . . Robots Rewired . | . . . . . . . . . . . . . . . . . . . . . . . . . . . . . . . . . . . Allies Hacked 4 | . . . . . . . . . . . . . . . . 1 . . . . . . . . 2 . . . . . 1 . . . Hacks Repelled . | . . . . . . . . . . . . . . . . . . . . . . . . . . . . . . . . . . . Allies | -11 -10 -10 -9 -9 -9 -9 -9 -6 -6 -6 -6 -6 -6 -6 -5 -5 -5 -5 -5 -5 -5 -4 -4 -4 -4 -4 -4 -4 -3 -3 -3 -2 -2 -2 -------- Run | Yrd Mat Min Mat Sto Gar Rec Scr Fac Was Fac Low Low Zio Dee Pro Fac Was Fac Upp Upp War Pro Fac Was Fac Upp Upp Zhi Pro Res Tes Res Qua Frg Total Allies 79 | . . . . 9 1 . . . 18 . . . 2 . . 2 19 1 2 . . . 1 20 . . . . . . 4 . . . Largest Group 20 | . . . . 9 9 . . . 18 13 . . 2 2 . 1 19 13 2 . . . 1 20 20 . . . . . 3 . . . Highest-Rated Group 779 | . . . . 80 87 . . . 656 478 . . 59 59 . 26 702 476 62 . . . 10 779 779 . . . . . 190 . . . Highest-Rated Ally 82 | . . . . 16 31 . . . 50 46 . . 31 31 . 26 50 46 31 . . . 10 46 47 . . . . . 82 . . . Initial Warlord ECA Mod 1 | . . . . . . 1 1 . . . . . . . . . . . . . . . . . . . . . . . . . . . Total Orders . | . . . . . . . . . . . . . . . . . . . . . . . . . . . . . . . . . . . Ally Attacks 817 | . . . . . 56 . . . 183 94 . . . 1 . . 155 99 11 . . . . . 197 . . . . . 21 . . . Total Damage 17776 | . . . . . 486 . . . 3743 2187 . . . . . . 2892 2139 125 . . . . . 5449 . . . . . 755 . . . Kills 72 | . . . . . 6 . . . 6 16 . . . . . . 4 10 . . . . . . 25 . . . . . 5 . . . Allies Corrupted 3 | . . . . . . . . . . 2 . . . . . . 1 . . . . . . . . . . . . . . . . . Allies Melted 4 | . . . . . . . . . . 1 . . . . . . . 1 . . . . . . 1 . . . . . . . . 1 Intel | -11 -10 -10 -9 -9 -9 -9 -9 -6 -6 -6 -6 -6 -6 -6 -5 -5 -5 -5 -5 -5 -5 -4 -4 -4 -4 -4 -4 -4 -3 -3 -3 -2 -2 -2 ------- Run | Yrd Mat Min Mat Sto Gar Rec Scr Fac Was Fac Low Low Zio Dee Pro Fac Was Fac Upp Upp War Pro Fac Was Fac Upp Upp Zhi Pro Res Tes Res Qua Frg Active Infowar (turns) 15772 | 137 187 . . . . . . 1145 390 472 258 553 574 213 599 1537 376 1031 408 136 649 95 687 460 660 518 222 166 237 430 331 156 155 2990 Optics 13398 | . . . . . . . . 925 390 472 258 553 574 213 599 1537 376 1031 408 136 649 95 687 460 660 518 222 166 237 430 331 156 155 1160 IFF 10531 | . . . . . . . . . . 437 258 553 342 . 568 936 376 126 381 136 246 71 683 460 566 489 221 77 237 408 331 105 99 2425 Seismic 324 | 137 187 . . . . . . . . . . . . . . . . . . . . . . . . . . . . . . . . . T.N.C. 222 | . . . . . . . . 220 . . . . . . . . . 2 . . . . . . . . . . . . . . . . Cloaking 1636 | . . . . . . . . . . . . . . . . . . . . . 1 . . . . . . . . 7 . . . 1628 Jamming 6172 | . . . . . . . . . 5 . . . 35 . 3 522 126 760 27 . . 17 345 . 313 32 . 17 176 430 329 156 155 2724 ECM 15 | . . . . . . . . . . . . . . . . . 15 . . . . . . . . . . . . . . . . . Robot Analysis Total 4 | . . . . . . . . . . . . . . . . . . . . . . . . . . . . 4 . . . . . . Derelict Logs Recovered 14 | . . 2 . . . . . . . . 1 . 1 . 2 . . . 3 . . 1 . . . 3 1 . . . . . . . Drone Launches . | . . . . . . . . . . . . . . . . . . . . . . . . . . . . . . . . . . . Drone Recoveries . | . . . . . . . . . . . . . . . . . . . . . . . . . . . . . . . . . . . Exploration | -11 -10 -10 -9 -9 -9 -9 -9 -6 -6 -6 -6 -6 -6 -6 -5 -5 -5 -5 -5 -5 -5 -4 -4 -4 -4 -4 -4 -4 -3 -3 -3 -2 -2 -2 ------------- Run | Yrd Mat Min Mat Sto Gar Rec Scr Fac Was Fac Low Low Zio Dee Pro Fac Was Fac Upp Upp War Pro Fac Was Fac Upp Upp Zhi Pro Res Tes Res Qua Frg Turns Passed 26145 | 257 1882 831 648 2571 650 1212 2533 1204 390 472 258 553 574 213 599 1537 376 1031 408 136 649 95 687 460 660 518 222 166 237 430 331 156 155 3044 Spaces Moved 37203 | 149 944 667 294 1125 287 705 1410 2664 619 1135 693 676 1462 509 917 3200 373 1932 965 400 1066 385 1916 257 1088 1274 865 168 638 859 956 527 639 5439 Core 4 | 4 . . . . . . . . . . . . . . . . . . . . . . . . . . . . . . . . . . Treads 803 | 6 746 18 14 . . . 19 . . . . . . . . . . . . . . . . . . . . . . . . . . . Legs . | . . . . . . . . . . . . . . . . . . . . . . . . . . . . . . . . . . . Wheels 4774 | 139 198 649 280 1125 287 705 1391 . . . . . . . . . . . . . . . . . . . . . . . . . . . Hover . | . . . . . . . . . . . . . . . . . . . . . . . . . . . . . . . . . . . Flight 31622 | . . . . . . . . 2664 619 1135 693 676 1462 509 917 3200 373 1932 965 400 1066 385 1916 257 1088 1274 865 168 638 859 956 527 639 5439 Fastest Speed 5 | 50 90 105 105 160 160 160 160 28 28 28 28 28 28 19 19 24 24 22 22 19 22 22 21 21 21 21 21 21 21 7 17 14 5 5 Average Speed 43 | 91 145 106 155 168 160 160 175 28 29 28 28 28 29 27 27 24 25 23 22 21 22 22 21 21 21 21 21 78 24 16 17 14 13 23 Slowest Speed 400 | 160 160 240 185 185 160 160 400 104 95 28 28 28 95 28 28 94 95 27 22 22 22 22 88 21 21 21 21 93 93 17 17 17 14 95 Overloaded Moves 148 | . . . . . . . . . . . . . . 42 1 . . . . 11 . . . . . . . . . 14 . . 30 50 Propulsion Burnouts . | . . . . . . . . . . . . . . . . . . . . . . . . . . . . . . . . . . . Robots Hopped 159 | . . . . . . . . 18 . 7 . 1 . 2 . 7 . 19 . 4 1 . 7 2 14 4 3 . . 5 8 2 5 50 Potential Cave-ins 22 | . . . . . . . . . . . . . . . . . . . 4 . . . . . . . . . . . . . . 18 Cave-ins Triggered 1 | . . . . . . . . . . . . . . . . 1 . . . . . . . . . . . . . . . . . . Exploration Rate (%) 67 | 5 99 93 14 95 40 98 91 67 96 38 71 74 86 71 80 51 95 41 90 57 92 69 54 94 32 96 91 63 68 25 82 21 77 61 Regions Visited 34 Branch Regions 20 Pre-discovered Areas 19 | . 1 2 . . . 5 . 1 . . . . 3 . 1 . . . 2 . . . . . . 1 . 3 . . . . . . Known Exits Taken 10 | . . . 1 1 . . . . . 1 . . . . . . . 1 . . . 1 . . 1 . . . 1 1 1 1 . . Unknown Exits Taken 17 | 1 1 1 . . . 1 1 . . . 1 1 1 1 1 . . . 1 1 1 . . . . 1 1 1 . . . . 1 . Scrap Searched 34 | . . 1 . . . . 6 . . . 2 3 4 . 2 . . . 2 1 . 1 . . . 5 5 . 2 . . . . . Spaces Dug 422 | . 2 31 . 2 3 . . 17 . 20 18 47 . 44 . 50 . 23 13 . 5 . 22 . 15 11 6 . 9 16 5 12 1 50 Terrain Destroyed 684 | . 5 31 . 2 3 . . 17 . 22 33 103 . 76 . 54 1 27 19 . 5 . 26 . 18 18 6 . 10 18 6 13 2 169 Melee 216 | . . . . 2 3 . . 17 . 20 1 5 . . . 42 . 19 6 . 5 . 21 . 13 7 6 . 8 15 4 10 . 12 Projectile 124 | . 2 4 . . . . . . . . . . . . . 12 1 8 13 . . . 5 . 5 11 . . 2 3 2 3 2 51 AOE 265 | . 3 27 . . . . . . . 2 32 98 . 76 . . . . . . . . . . . . . . . . . . . 27 Terrain Rammed . | . . . . . . . . . . . . . . . . . . . . . . . . . . . . . . . . . . . Walls Destroyed . | . . . . . . . . . . . . . . . . . . . . . . . . . . . . . . . . . . . Machines Disabled . | . . . . . . . . . . . . . . . . . . . . . . . . . . . . . . . . . . . Actions | -11 -10 -10 -9 -9 -9 -9 -9 -6 -6 -6 -6 -6 -6 -6 -5 -5 -5 -5 -5 -5 -5 -4 -4 -4 -4 -4 -4 -4 -3 -3 -3 -2 -2 -2 --------- Run | Yrd Mat Min Mat Sto Gar Rec Scr Fac Was Fac Low Low Zio Dee Pro Fac Was Fac Upp Upp War Pro Fac Was Fac Upp Upp Zhi Pro Res Tes Res Qua Frg Total 45121 | 201 1304 765 406 1621 391 753 1461 3027 811 1241 748 1020 1553 571 1219 3780 609 2373 1123 443 1454 392 2145 644 1448 1493 887 197 690 1092 1076 579 687 6917 Wait 5564 | 1 235 74 15 253 1 5 . 185 166 67 46 312 29 53 257 343 193 359 128 48 335 4 138 369 278 185 8 12 28 179 44 9 28 1177 Move 36874 | 148 943 666 293 1124 286 704 1409 2633 618 1120 692 673 1461 504 916 3187 372 1894 964 391 1063 384 1902 252 1060 1265 858 167 637 848 939 522 628 5351 Hop 139 | . . . . . . . . 13 . 7 . 1 . 2 . 6 . 18 . 4 1 . 7 2 13 4 3 . . 5 8 2 5 38 Pick Up 271 | 8 17 2 29 50 5 5 11 15 3 4 1 3 3 . 6 21 5 8 . . 8 . 12 2 11 . . 4 1 7 5 6 3 16 Fast Attach 120 | 7 2 1 2 1 . . 8 12 3 1 . 4 7 . 2 8 3 7 1 . 1 . 3 . 2 4 4 2 . . 12 6 . 17 Attach 122 | . 1 . 6 6 3 1 . 15 . . . 3 3 3 3 14 1 4 . . . . 6 1 8 3 . 2 2 4 3 5 1 24 Detach 63 | . . . . . . 2 1 3 . . . 2 3 . 1 7 . . . . . . 3 . 8 3 . . 2 1 6 2 1 18 Swap 366 | 2 16 9 7 31 14 12 14 21 6 7 3 2 10 . 4 76 5 13 3 . 24 4 7 . 16 6 2 2 . 9 8 3 2 28 Drop 346 | . 15 4 14 49 2 9 15 46 5 7 1 4 10 . 3 28 7 8 . . 8 . 12 2 7 4 4 5 1 8 20 4 4 40 Fire 612 | 35 75 9 40 87 24 15 . 10 2 2 2 10 . 9 27 14 15 26 13 . 1 . 6 14 10 9 . . 2 2 3 3 6 141 Melee 434 | . . . . 4 16 . 3 45 8 26 3 5 . . . 75 8 36 14 . 5 . 29 2 21 10 8 3 17 29 28 17 9 13 Ram . | . . . . . . . . . . . . . . . . . . . . . . . . . . . . . . . . . . . Kick . | . . . . . . . . . . . . . . . . . . . . . . . . . . . . . . . . . . . Crush . | . . . . . . . . . . . . . . . . . . . . . . . . . . . . . . . . . . . Escape Stasis 72 | . . . . 8 16 . . 29 . . . . . . . . . . . . . . 15 . . . . . . . . . . 4 Rewire 1 | . . . . . . . . . . . . . . . . 1 . . . . . . . . . . . . . . . . . . Trap 37 | . . . . 8 24 . . . . . . . . . . . . . . . . . 5 . . . . . . . . . . . Miscellaneous 100 | . . . . . . . . . . . . 1 27 . . . . . . . 8 . . . 14 . . . . . . . . 50 Route ------- -11/Scrapyard -10/Materials (discovered 6 exits: *Mat x3 / [*Min x2] / [*Sub]) -10/Mines (discovered 4 exits: *Mat x2 / [*Exi] / [*Sub]) -9/Materials (discovered 2 exits: Min / *Sto) -9/Storage (discovered 3 exits: [*Mat] / *Rec / Gar) -9/Garrison -9/Recycling (discovered 2 exits: [*Fac] / *Scr) -9/Scraptown (discovered 2 exits: *Fac x2) -6/Factory (discovered 3 exits: *Fac x2 / *Low) -6/Waste -6/Factory (discovered 4 exits: *Fac x2 / *Low x2) -6/Lower Caves -6/Lower Caves (discovered 2 exits: *Fac / *Zio) -6/Zion (discovered 2 exits: [*Dee] / [*Pro]) -6/Deep Caves -5/Proximity Caves -5/Factory (discovered 8 exits: *Fac x4 / *Upp x2 / *Ext x2) -5/Waste -5/Factory (discovered 5 exits: *Fac / *Upp x2 / Ext x2) -5/Upper Caves -5/Upper Caves (discovered 2 exits: *Fac / *War) -5/Warlord -4/Proximity Caves -4/Factory (discovered 5 exits: *Res x3 / *Upp x2) -4/Waste -4/Factory (discovered 4 exits: *Res x2 / *Upp x2) -4/Upper Caves -4/Upper Caves (discovered 2 exits: *Res / *Zhi) -4/Zhirov -3/Proximity Caves -3/Research (discovered 6 exits: Res x3 / Arm / *Tes x2) -3/Testing -2/Research -2/Quarantine (discovered 2 exits: [*Sec] / *Frg) -2/Protoforge 0bPrime History --------- Turn | Location | Event 7 | -11/Scrapyard | Discovered new exit (range 16) 258 | -11/Scrapyard | Entered Materials 303 | -10/Materials | Build established: Mutant 513 | -10/Materials | Discovered new exit (range 11) 526 | -10/Materials | Discovered new exit (range 10) 582 | -10/Materials | Discovered new exit (range 10) 719 | -10/Materials | Discovered new exit (range 9) 900 | -10/Materials | Discovered new exit (range 16) 1350 | -10/Materials | Discovered new exit (range 16) 1664 | -10/Materials | Repaired Assault Rifle 1691 | -10/Materials | Repaired Lgt. Armor Plating 2140 | -10/Materials | Entered Mines 2148 | -10/Mines | Assembled infested the area 2233 | -10/Mines | Met 8R-AWN 2247 | -10/Mines | Discovered new exit (range 5) 2268 | -10/Mines | Learned location of Zion (-6) 2337 | -10/Mines | Discovered new exit (range 6) 2365 | -10/Mines | Learned Materials non-interactive machine intel 2592 | -10/Mines | Discovered new exit (range 7) 2617 | -10/Mines | Learned location of Storage (-9) 2715 | -10/Mines | Discovered new exit (range 8) 2971 | -10/Mines | Entered Materials 2971 | -9/Materials | Evolved 2 slots: Weapon x2 2972 | -9/Materials | Loaded intel: 41 non-interactive machine locations 2983 | -9/Materials | Identified exit to Mines 2983 | -9/Materials | Identified exit to Storage 3086 | -9/Materials | Lost 3 parts (1n1u1w) 3571 | -9/Materials | Build established: Hauler-Gunner 3619 | -9/Materials | Entered Storage 4698 | -9/Storage | Central database locked down 5287 | -9/Storage | Used back door to open Recycling access 5287 | -9/Storage | Discovered new exit (range 5) 5745 | -9/Storage | Discovered new exit (range 16) 5822 | -9/Storage | Repaired Hvy. Assault Rifle 5838 | -9/Storage | Repaired Lgt. Nuclear Core 5872 | -9/Storage | Repaired Hvy. Assault Rifle 5900 | -9/Storage | Identified exit to Garrison 6018 | -9/Storage | Assisted by bots powering up and referring to "LRC-V3" 6190 | -9/Storage | Entered Garrison 6190 | -9/Garrison | Accompanied by 9 allies 6244 | -9/Garrison | Rescued a captive Derelict 6244 | -9/Garrison | Rescued a captive Derelict 6281 | -9/Garrison | Garrison Relay disabled 6285 | -9/Garrison | Lost 3 allies 6604 | -9/Garrison | Triggered checkpoint 6614 | -9/Garrison | Core integrity fell below 50% 6617 | -9/Garrison | Triggered checkpoint 6673 | -9/Garrison | Lost 7 allies 6682 | -9/Garrison | Destroyed 7 combat bots 6684 | -9/Garrison | Lost 3 parts (1p2w) 6762 | -9/Garrison | Discovered new exit (range 10) 6840 | -9/Garrison | Entered Recycling 7199 | -9/Recycling | Discovered new exit (range 9) 8009 | -9/Recycling | Scanned before Scraplab entrance 8038 | -9/Recycling | Entered Scraplab 8050 | -9/Recycling | Discovered new exit (range 2) 8052 | -9/Recycling | Entered Scraptown 8052 | -9/Scraptown | System corruption cleaned by C-Scrubber 8289 | -9/Scraptown | Build established: Hauler-Mutant 8505 | -9/Scraptown | Heard Great Nut preacher, LISTEN AND RECITE! 8515 | -9/Scraptown | Visited Cave Peace 8561 | -9/Scraptown | Visited Symbiants 8614 | -9/Scraptown | Visited IN-MT5's Study 8655 | -9/Scraptown | Visited SPCMW 9053 | -9/Scraptown | Discovered new exit (range 13) 9083 | -9/Scraptown | Build established: Hauler-Gunner 9113 | -9/Scraptown | Visited Assassins FH 9139 | -9/Scraptown | Visited Cyclists 9200 | -9/Scraptown | Visited Red Mages 9247 | -9/Scraptown | Visited UFD Registry 9247 | -9/Scraptown | Registered with UFD as "Spikeblaster" 9301 | -9/Scraptown | Visited LU-1G1's Boring Crew 9391 | -9/Scraptown | Visited Junk Repository 9423 | -9/Scraptown | Visited Abandonware Association 9437 | -9/Scraptown | Learned abandonware demo "OVRCLOCK.EXE" 9443 | -9/Scraptown | Learned abandonware demo "REVENGE.EXE" 9443 | -9/Scraptown | Learned abandonware demo "POISON.EXE" 9471 | -9/Scraptown | Visited A0-MCA Data Center 9559 | -9/Scraptown | Visited Supply Room 9841 | -9/Scraptown | Visited Junk Cannon Lab 9906 | -9/Scraptown | Found Prototype Special Weapon 9906 | -9/Scraptown | Identified Junk Cannon 9949 | -9/Scraptown | Visited Chapter 10 10009 | -9/Scraptown | Visited Science Guys 10192 | -9/Scraptown | Given a C+ rating by A0-MCA 10196 | -9/Scraptown | Found A0-MCA's Component Scanner 10497 | -9/Scraptown | Met Optimus 10497 | -9/Scraptown | Accepted into 0bPrime 10578 | -9/Scraptown | Discovered new exit (range 5) 10585 | -9/Scraptown | Entered Factory 10585 | -6/Factory | Evolved 6 slots: Propulsion x3, Utility x3 10775 | -6/Factory | Loaded intel: 8 recycling unit locations 10879 | -6/Factory | Build established: Scavenger-Sprinter 10921 | -6/Factory | Discovered new exit (range 7) 10935 | -6/Factory | Search patrols dispatched 10978 | -6/Factory | Discovered new exit (range 17) 11000 | -6/Factory | Learned location of Protoforge (-2) 11198 | -6/Factory | Build established: Hacker-Sprinter 11332 | -6/Factory | Discovered new exit (range 13) 11583 | -6/Factory | Fabricated Cld. Field Propulsion Drive (x1) 11612 | -6/Factory | Build established: Sprinter 11635 | -6/Factory | Search patrols dispatched 11649 | -6/Factory | Fabricated Cld. Field Propulsion Drive (x1) 11719 | -6/Factory | Fabricated Cld. Field Propulsion Drive (x1) 11789 | -6/Factory | Manually triggered Chute Trap 11789 | -6/Factory | Sucked down chute 11789 | -6/Factory | Entered Waste 11789 | -6/Waste | Spotted C-40 Crusher 11790 | -6/Waste | Spotted C-40 Crusher 11799 | -6/Waste | Spotted C-40 Crusher 11802 | -6/Waste | Spotted C-40 Crusher 11802 | -6/Waste | Spotted C-40 Crusher 11803 | -6/Waste | Spotted C-40 Crusher 11823 | -6/Waste | Warlord forces began an assault 11833 | -6/Waste | Allies destroyed C-40 Crusher 11841 | -6/Waste | Allies destroyed C-40 Crusher 11849 | -6/Waste | Allies destroyed C-40 Crusher 11858 | -6/Waste | Allies destroyed C-40 Crusher 11883 | -6/Waste | Allies destroyed C-40 Crusher 11967 | -6/Waste | Discovered new exit (range 10) 12179 | -6/Waste | Entered Factory 12179 | -6/Factory | Accompanied by 13 allies 12216 | -6/Factory | Loaded intel: 8 recycling unit locations 12235 | -6/Factory | Identified exit to Lower Caves 12257 | -6/Factory | Lost 3 allies 12313 | -6/Factory | Lost 3 allies 12420 | -6/Factory | Central database locked down 12444 | -6/Factory | Discovered new exit (range 18) 12495 | -6/Factory | Discovered new exit (range 5) 12554 | -6/Factory | Spotted B-75 Beast 12651 | -6/Factory | Entered Lower Caves 12677 | -6/Lower Caves | Encountered a Warlord checkpoint 12697 | -6/Lower Caves | Found DRS Beacon 12774 | -6/Lower Caves | Spotted B-75 Beast 12795 | -6/Lower Caves | Learned Factory security intel 12905 | -6/Lower Caves | Discovered new exit (range 11) 12909 | -6/Lower Caves | Entered another Lower Caves area 12966 | -6/Lower Caves | Discovered new exit (range 15) 12985 | -6/Lower Caves | Spotted B-75 Beast 13001 | -6/Lower Caves | Destroyed 10 combat bots 13010 | -6/Lower Caves | Lost 4 parts (1p3w) 13242 | -6/Lower Caves | Activated DRS Beacon 13448 | -6/Lower Caves | Encountered a Warlord checkpoint 13458 | -6/Lower Caves | Discovered new exit (range 10) 13462 | -6/Lower Caves | Entered Zion 13474 | -6/Zion | System corruption cleaned by Quarantine Array 13521 | -6/Zion | Found GAL Module 13526 | -6/Zion | Discovered new exit (range 10) 13571 | -6/Zion | Visited the Megawrench Repair Shop 13571 | -6/Zion | Learned Factory security intel 13633 | -6/Zion | Learned location of Quarantine (-2) 13660 | -6/Zion | Gained Derelict followers 13700 | -6/Zion | Turned away by Imprinter 13785 | -6/Zion | Found Prototype Processor 13785 | -6/Zion | Identified Exp. Core Analyzer 13790 | -6/Zion | Found Prototype Processor 13790 | -6/Zion | Identified Exp. Signal Interpreter 13792 | -6/Zion | Found Prototype Processor 13792 | -6/Zion | Identified Exp. Armor Integrity Analyzer 13795 | -6/Zion | Found Prototype Processor 13795 | -6/Zion | Identified Exp. Target Analyzer 13797 | -6/Zion | Found Prototype Hackware 13797 | -6/Zion | Identified Exp. System Shield 13866 | -6/Zion | Megawrench repaired 8 parts 13974 | -6/Zion | Discovered new exit (range 5) 13983 | -6/Zion | Saw the warning signs outside the Deep Caves entrance 14036 | -6/Zion | Entered Deep Caves 14036 | -6/Deep Caves | Accompanied by 2 allies 14153 | -6/Deep Caves | Attacked by Z-Imprinter 14172 | -6/Deep Caves | Z-Facility disabled 14247 | -6/Deep Caves | Discovered new exit (range 6) 14249 | -6/Deep Caves | Entered Proximity Caves 14262 | -5/Proximity Caves | Lost 4 parts (1p1u2w) 14469 | -5/Proximity Caves | Spotted B-75 Beast 14677 | -5/Proximity Caves | Build established: Scavenger-Sprinter 14837 | -5/Proximity Caves | Discovered new exit (range 9) 14838 | -5/Proximity Caves | Learned Factory trap positions 14848 | -5/Proximity Caves | Entered Factory 14848 | -5/Factory | Evolved 2 slots: Power x1, Propulsion x1 14849 | -5/Factory | Loaded intel: 68 trap records 14972 | -5/Factory | Identified exit to Factory 15273 | -5/Factory | Discovered new exit (range 15) 15444 | -5/Factory | Fabricated Cld. Field Propulsion Drive (x1) 15552 | -5/Factory | Loaded intel: 8 recycling unit locations 15752 | -5/Factory | Fabricated Cld. Field Propulsion Drive? 15936 | -5/Factory | Identified exit to Upper Caves 15936 | -5/Factory | Identified exit to Extension 16057 | -5/Factory | Build established: Machinist-Sprinter 16177 | -5/Factory | Fabricated Cld. Field Propulsion Drive? 16344 | -5/Factory | Crushed by falling debris 16385 | -5/Factory | Manually triggered Chute Trap 16385 | -5/Factory | Sucked down chute 16385 | -5/Factory | Entered Waste 16390 | -5/Waste | Found Prototype Device 16392 | -5/Waste | Spotted C-40 Crusher 16395 | -5/Waste | Warlord forces began an assault 16511 | -5/Waste | Identified Exp. ECM Suite 16582 | -5/Waste | Spotted C-40 Crusher 16594 | -5/Waste | Spotted C-40 Crusher 16595 | -5/Waste | Destroyed C-40 Crusher 16606 | -5/Waste | Allies destroyed C-40 Crusher 16625 | -5/Waste | Spotted C-40 Crusher 16629 | -5/Waste | Destroyed C-40 Crusher 16644 | -5/Waste | Spotted C-40 Crusher 16644 | -5/Waste | Allies destroyed C-40 Crusher 16693 | -5/Waste | Spotted C-40 Crusher 16701 | -5/Waste | Allies destroyed C-40 Crusher 16710 | -5/Waste | Allies destroyed C-40 Crusher 16726 | -5/Waste | Discovered new exit (range 12) 16761 | -5/Waste | Entered Factory 16761 | -5/Factory | Accompanied by 13 allies 16867 | -5/Factory | Lost 3 allies 16887 | -5/Factory | Discovered exit to Factory (range 18) 17058 | -5/Factory | Lost 6 allies 17112 | -5/Factory | Build established: Hacker-Sprinter 17119 | -5/Factory | Lost 4 parts (1p3w) 17351 | -5/Factory | Loaded intel: 8 recycling unit locations 17792 | -5/Factory | Entered Upper Caves 17994 | -5/Upper Caves | A Commander dispatched an escort 17995 | -5/Upper Caves | Learned Extension stockpile data 18001 | -5/Upper Caves | Learned Factory security intel 18061 | -5/Upper Caves | Learned Factory terminal intel 18138 | -5/Upper Caves | Discovered new exit (range 15) 18200 | -5/Upper Caves | Entered another Upper Caves area 18202 | -5/Upper Caves | Discovered exit to Factory (range 20) 18324 | -5/Upper Caves | Discovered new exit (range 9) 18336 | -5/Upper Caves | Entered Warlord 18461 | -5/Warlord | Found Prototype Device 18461 | -5/Warlord | Identified Exp. Cloaking Device 18470 | -5/Warlord | Found Prototype Device 18470 | -5/Warlord | Identified System Purifier 18510 | -5/Warlord | Visited the Vortex Lab 18511 | -5/Warlord | Found Prototype Energy Gun 18511 | -5/Warlord | Identified Vortex Shotgun 18517 | -5/Warlord | Found Vortex Shotgun 18533 | -5/Warlord | Warlord's base attacked by MAIN.C 18730 | -5/Warlord | Rebuked by Warlord 18873 | -5/Warlord | Spotted Executioner 18883 | -5/Warlord | Warlord forces counterattacked 18975 | -5/Warlord | Lost 10 allies 18979 | -5/Warlord | Opened side exit 18984 | -5/Warlord | Discovered new exit (range 9) 18985 | -5/Warlord | Entered Proximity Caves 19051 | -4/Proximity Caves | Learned 4 Research zone layouts 19072 | -4/Proximity Caves | Discovered exit to Factory (range 20) 19080 | -4/Proximity Caves | Entered Factory 19080 | -4/Factory | Evolved 2 slots: Utility x2 19081 | -4/Factory | Identified exit to Research 19083 | -4/Factory | Loaded intel: 26 terminal locations 19259 | -4/Factory | Spotted B-86 Titan 19276 | -4/Factory | Loaded intel: 8 recycling unit locations 19285 | -4/Factory | Discovered new exit (range 3) 19292 | -4/Factory | Discovered exit to Research (range 21) 19445 | -4/Factory | Identified exit to Upper Caves 19495 | -4/Factory | Discovered exit to Research (range 22) 19580 | -4/Factory | Search patrols dispatched 19611 | -4/Factory | Spotted B-86 Titan 19767 | -4/Factory | Manually triggered Chute Trap 19767 | -4/Factory | Sucked down chute 19767 | -4/Factory | Entered Waste 19768 | -4/Waste | Joined by Warlord forces that had cleared the area 19806 | -4/Waste | Found Exp. Cloaking Device 19885 | -4/Waste | Discovered new exit (range 11) 20227 | -4/Waste | Entered Factory 20227 | -4/Factory | Accompanied by 20 allies 20241 | -4/Factory | Loaded intel: 8 recycling unit locations 20332 | -4/Factory | Discovered exit to Research (range 8) 20595 | -4/Factory | Fabricated Imp. Diametric Drive? 20604 | -4/Factory | Discovered exit to Research (range 7) 20625 | -4/Factory | Lost 4 allies 20664 | -4/Factory | Spotted B-86 Titan 20713 | -4/Factory | Garrison activated, responded to threat 20727 | -4/Factory | First assault squad dispatched 20887 | -4/Factory | Entered Upper Caves 21042 | -4/Upper Caves | Spotted B-86 Titan 21138 | -4/Upper Caves | Learned 12 Research zone layouts 21179 | -4/Upper Caves | Attracted the attention of an 0b10 checkpoint 21191 | -4/Upper Caves | Encountered a Warlord checkpoint 21193 | -4/Upper Caves | Found DCF Scrap (12 items) 21252 | -4/Upper Caves | Lost 3 allies 21394 | -4/Upper Caves | Learned Research terminal intel 21399 | -4/Upper Caves | Discovered new exit (range 6) 21405 | -4/Upper Caves | Entered another Upper Caves area 21415 | -4/Upper Caves | Discovered exit to Research (range 19) 21499 | -4/Upper Caves | Attracted the attention of an 0b10 checkpoint 21574 | -4/Upper Caves | Entered a destroyed Warlord outpost 21608 | -4/Upper Caves | Discovered new exit (range 8) 21610 | -4/Upper Caves | Encountered a Warlord checkpoint 21627 | -4/Upper Caves | Entered Zhirov 21627 | -4/Zhirov | Discovered new exit (range 3) 21644 | -4/Zhirov | Met Zhirov 21662 | -4/Zhirov | Learned location of Command (-1) 21682 | -4/Zhirov | Zhirov requested help retrieving the SGEMP Prototype 21702 | -4/Zhirov | Found Alien Artifact 21702 | -4/Zhirov | Identified Integrated Dissipator 21702 | -4/Zhirov | Installed Integrated Dissipator, increased core heat dissipation (+20) 21755 | -4/Zhirov | Found Alien Artifact 21793 | -4/Zhirov | Entered Proximity Caves 21803 | -3/Proximity Caves | Spotter reported a threat 21804 | -3/Proximity Caves | Spotter reported a threat 21986 | -3/Proximity Caves | Encountered a Derelict sapper outpost 22015 | -3/Proximity Caves | Discovered exit to Research (range 11) 22030 | -3/Proximity Caves | Entered Research 22030 | -3/Research | Evolved 2 slots: Propulsion x1, Utility x1 22031 | -3/Research | Identified exit to Research 22032 | -3/Research | Loaded intel: 22 terminal locations 22140 | -3/Research | Found Gamma Bomb Array 22271 | -3/Research | Repaired Cld. Field Propulsion Drive 22280 | -3/Research | Search patrols dispatched 22321 | -3/Research | Fabricated Tri-rail Accelerator (x1) 22368 | -3/Research | Unchained authorized (GL-D0S) 22375 | -3/Research | Identified exit to Armory 22375 | -3/Research | Identified exit to Testing 22395 | -3/Research | Loaded intel: 5 recycling unit locations 22455 | -3/Research | Found Prototype Launcher 22460 | -3/Research | Entered Testing 22484 | -3/Testing | Found Prototype Ballistic Gun 22484 | -3/Testing | Identified Hyp. Multirail 22486 | -3/Testing | Identified Hellfire Missile Launcher 22527 | -3/Testing | Found Prototype Device 22527 | -3/Testing | Identified Exp. Transmission Jammer 22531 | -3/Testing | Found Prototype Processor 22531 | -3/Testing | Identified Spectral Analyzer 22566 | -3/Testing | Spotted PL-TWPGQKT3JE 22573 | -3/Testing | Found Prototype Energy Cannon 22573 | -3/Testing | Identified Disintegrator 22584 | -3/Testing | Found Prototype Energy Cannon 22584 | -3/Testing | Identified Cld. Nova Cannon 22616 | -3/Testing | Found Prototype Hackware 22616 | -3/Testing | Identified System Mapper 22638 | -3/Testing | Spotted Striker 22638 | -3/Testing | Spotted Striker 22642 | -3/Testing | Found Prototype Ballistic Cannon 22642 | -3/Testing | Identified Perforator 22667 | -3/Testing | Discovered exit to Research (range 4) 22676 | -3/Testing | Central database locked down 22682 | -3/Testing | Found Prototype Energy Gun 22682 | -3/Testing | Identified Hyp. EM Gauss Rifle 22689 | -3/Testing | Found Prototype Energy Gun 22689 | -3/Testing | Identified Warp Gun 22762 | -3/Testing | Found Prototype Energy Cannon 22762 | -3/Testing | Identified Potential Cannon 22791 | -3/Testing | Entered Research 22791 | -2/Research | Evolved 2 slots: Propulsion x1, Utility x1 22792 | -2/Research | Identified exit to Quarantine 22803 | -2/Research | Found Exp. Core Analyzer 22869 | -2/Research | Spotted B-90 Cyclops 22902 | -2/Research | Spotted B-90 Cyclops 22947 | -2/Research | Entered Quarantine 22961 | -2/Quarantine | Found Alien Artifact 23005 | -2/Quarantine | Found Alien Energy Cannon 23014 | -2/Quarantine | Found Alien Artifact 23082 | -2/Quarantine | Spotted Alpha 7 23092 | -2/Quarantine | Spotted Fortress 23099 | -2/Quarantine | Discovered new exit (range 5) 23099 | -2/Quarantine | Discovered new exit (range 6) 23102 | -2/Quarantine | Entered Protoforge 23104 | -2/Protoforge | Spotted B-90 Cyclops 23195 | -2/Protoforge | Spotted Hotshot 23195 | -2/Protoforge | Spotted Hotshot 23280 | -2/Protoforge | Spotted EXE-6 23284 | -2/Protoforge | Spotted EXE-6 23287 | -2/Protoforge | Spotted Decapitator 23288 | -2/Protoforge | Spotted Decapitator 23290 | -2/Protoforge | UFD initiated attack on Protoforge (Readiness: Maximal) 23290 | -2/Protoforge | Loaded intel: 3 recycling unit locations 23304 | -2/Protoforge | Superfortress began startup sequence 23361 | -2/Protoforge | Optimus greeted in Protoforge 23366 | -2/Protoforge | Found UFD Drillbomb 23371 | -2/Protoforge | Spotted EXE-6 23401 | -2/Protoforge | Spotted EXE-6 23491 | -2/Protoforge | Spotted AP7-3 23491 | -2/Protoforge | Spotted AP7-3 23494 | -2/Protoforge | Spotted Hotshot 23494 | -2/Protoforge | Spotted Hotshot 23497 | -2/Protoforge | UFD reported confirmed Drillbomb installation 23504 | -2/Protoforge | Spotted Striker 23507 | -2/Protoforge | Spotted Striker 23543 | -2/Protoforge | Spotted Striker 23543 | -2/Protoforge | Spotted Executioner 23596 | -2/Protoforge | Spotted Executioner 23598 | -2/Protoforge | Spotted Hotshot 23598 | -2/Protoforge | Spotted Hotshot 23617 | -2/Protoforge | Spotted Striker 23617 | -2/Protoforge | Spotted Striker 23621 | -2/Protoforge | Spotted Striker 23634 | -2/Protoforge | Found UFD Drillbomb 23655 | -2/Protoforge | Lost 4 parts (2n2u) 23662 | -2/Protoforge | Installed UFD Drillbomb at designated target 23662 | -2/Protoforge | UFD reported confirmed Drillbomb installation 23666 | -2/Protoforge | Identified Subatomic Replicator 23666 | -2/Protoforge | Used Subatomic Replicator to replicate Perforator 23671 | -2/Protoforge | Spotted Executioner 23694 | -2/Protoforge | Found UFD Drillbomb 23701 | -2/Protoforge | Lost 6 allies 23725 | -2/Protoforge | Destroyed Hotshot 23737 | -2/Protoforge | Destroyed Hotshot 23762 | -2/Protoforge | Spotted Striker 23762 | -2/Protoforge | Spotted Executioner 23775 | -2/Protoforge | Installed UFD Drillbomb at designated target 23775 | -2/Protoforge | UFD reported confirmed Drillbomb installation 23799 | -2/Protoforge | Spotted Overlord 23823 | -2/Protoforge | Lost 6 allies 23845 | -2/Protoforge | Build established: Sprinter 23856 | -2/Protoforge | Found Exp. Transmission Jammer 23860 | -2/Protoforge | Found Prototype Device 23860 | -2/Protoforge | Identified Exp. EM Shield 23874 | -2/Protoforge | Found 0bPrime Scrap Suit 23877 | -2/Protoforge | Spotted Striker 23913 | -2/Protoforge | Lost 3 allies 23976 | -2/Protoforge | Lost 5 allies 24064 | -2/Protoforge | Lost 4 allies 24156 | -2/Protoforge | Build established: Scavenger-Mutant 24224 | -2/Protoforge | Spotted Striker 24272 | -2/Protoforge | Spotted Hotshot 24297 | -2/Protoforge | Spotted Hotshot 24307 | -2/Protoforge | Lost 11 allies 24307 | -2/Protoforge | Destroyed Hotshot 24348 | -2/Protoforge | Installed UFD Drillbomb at designated target 24348 | -2/Protoforge | UFD reported confirmed Drillbomb installation 24378 | -2/Protoforge | Found UFD Drillbomb 24435 | -2/Protoforge | UFD reported confirmed Drillbomb installation 24448 | -2/Protoforge | Spotted Striker 24462 | -2/Protoforge | Destroyed Hotshot 24562 | -2/Protoforge | Build established: Scavenger-Sprinter 24612 | -2/Protoforge | Found 0bPrime Scrap Suit 24628 | -2/Protoforge | Found Prototype Device 24628 | -2/Protoforge | Identified Adv. Kinecellerator 24692 | -2/Protoforge | UFD reported confirmed Drillbomb installation 24750 | -2/Protoforge | Spotted Striker 24797 | -2/Protoforge | Spotted Executioner 24809 | -2/Protoforge | Found UFD Drillbomb 24845 | -2/Protoforge | Spotted Striker 24883 | -2/Protoforge | Spotted Striker 24904 | -2/Protoforge | Destroyed 02F21-K 24911 | -2/Protoforge | Spotted Striker 24935 | -2/Protoforge | Lost 8 allies 25023 | -2/Protoforge | UFD reported confirmed Drillbomb installation 25145 | -2/Protoforge | Spotted Striker 25145 | -2/Protoforge | Spotted Striker 25344 | -2/Protoforge | Spotted Striker 25344 | -2/Protoforge | Spotted Striker 25383 | -2/Protoforge | P-80 Master assimilated allied 2Y-M8E(E) 25427 | -2/Protoforge | Lost 6 allies 25450 | -2/Protoforge | Spotted Striker 25465 | -2/Protoforge | Spotted Executioner 25609 | -2/Protoforge | Discovered new exit (range 10) 25620 | -2/Protoforge | Installed UFD Drillbomb at designated target 25620 | -2/Protoforge | UFD reported confirmed Drillbomb installation 25659 | -2/Protoforge | Spotted Striker 25663 | -2/Protoforge | Spotted Striker 25667 | -2/Protoforge | Spotted Executioner 25678 | -2/Protoforge | UFD reported confirmed Drillbomb installation 25678 | -2/Protoforge | Found UFD Drillbomb 25707 | -2/Protoforge | Spotted Striker 25900 | -2/Protoforge | Lost 4 allies 25996 | -2/Protoforge | Spotted Executioner 25999 | -2/Protoforge | Destroyed Executioner 25999 | -2/Protoforge | Destroyed Executioner 26046 | -2/Protoforge | Installed UFD Drillbomb at designated target 26046 | -2/Protoforge | UFD reported confirmed Drillbomb installation 26047 | -2/Protoforge | UFD began Drillbomb countdown 26048 | -2/Protoforge | Spotted Executioner 26087 | -2/Protoforge | Lost 8 allies 26147 | *** | Defending 0bPrime! Last Messages --------------- 26130_ N-04 Retriever inserts Imp. Antigrav System into Forge Plexus. 26131_ N-04 Retriever inserts Adv. Heat Sink into Forge Plexus. 26132_ N-04 Retriever inserts Adv. Target Analyzer into Forge Plexus. 26133_ N-04 Retriever inserts Mic. Antimatter Reactor into Forge Plexus. 26137_ 0bP_NET: Hello everyone, and welcome to the end of MC's control over the Protoforge! 26138_ 0bP_NET: In T-9 this fine piece of machinery is all ours for the steep price of... many UFD lives. 26139_ 0bP_NET: But with it we will not only rebuild, we will wrest full control over 0b1 for ourselves! 26140_ 0bP_NET: What better way to punctuate our success than a blaze of glory, directed away from ourselves, of course. 26141_ 0bP_NET: Time for our final countdown to an explosive victory... 26142_ 0bP_NET: 5! 26143_ 0bP_NET: 4! 26144_ 0bP_NET: 3! 26145_ 0bP_NET: If you're in the wrong place at the wrong time, the wrong time being in just a moment, I'm sorry but prepare to die. 26146_ 0bP_NET: Otherwise, enjoy the show! [Achievement: Robotopia] Map ----- +----------------------------------------------------+ | """""""""""""""""" %%%%!%%%=! "#???????????? | | """""""""""""""""""%%%% %[|%%! " "#???????????? | | """"""""""""""""""""%%%% %*[% #???????????? | | """"""""""""""""""""%% %% %"%%[ "#???????????? | | """""""""""""""""""" %%%%% "% "! " "#???????????? | | """"""""""""""""""""" %%% % %% #???????????? | | """""""""""""""""""""%% %%% " " "#???????????? | | """""""""""""""""""""%% %% %"% " "#???????????? | | """""""""""""""""""""% %% %% " " #???????????? | | """""""""""""""""""""% % #???????????? | | """""""""""""""""""""% %% s % ##??????????? | | """""""""""""""""""""%%% " #??????????? | | """""""""""""""""""""% % "" #??????????? | | """""""""""""""""""""% % % " sSS ##??????????? | | """""""""""""""""""" %" "% !" E #???????????? | | """""""""""""""""""" ""% %%" #???????????? | | """"""""""""""""""""n % " ss" % #???????????? | | """"""""""""""""""" % " " s % %#???????????? | | """""""""""""""""" % % % " #???????????? | | """"""""""""""""" % % "% """" #???????????? | | """""""""""""""" %% " "% !=" #???????????? | | """"""""""""""" % SS% " %"%[=% #???????????? | | """""""""""""" %%SS % " * ! #???????????? | | %%""""""""" 3 % % % % ! #???????????? | | %%%%%% % % s " " " #???????????? | | %%% %* % s% @ %"""" #???????????? | | %% % ss % % """" ###?????????? | | %% " %SS s """ "" <<#?????????? | | %""" s s SS % <<#?????????? | | """" % Es % <<#?????????? | | " " % % s """" <&#?????????? | | % =%* s "" s "" <&#?????????? | | !! s "" "" "" <<#?????????? | | %" ""% " " " # #?????????? | | " ""s" "" " # #?????????? | | " " ###?????????? | | " """ "" #???????????? | | " "" """ #???????????? | | """ """""" " " " """" ""#???????????? | | ########################+++###########???????????? | | ???????????????????#"" ^ ""#?????????????????? | | ?????????????????###" "###???????????????? | | ?????????????????#"" ""#???????????????? | | ?????????????????#"" ""#???????????????? | | ?????????????????#"" ""#???????????????? | | ?????????????????#"Y Y"#???????????????? | | ?????????????????#"" ""#???????????????? | | ?????????????????#"" ""#???????????????? | | ?????????????????#"" ""#???????????????? | | ?????????????????###" "###???????????????? | +----------------------------------------------------+ Best States ------------- Heat Dissipation 107 Energy Generation 72 Energy Capacity 265 Matter Stores 300 Matter Capacity 600 Sight Range 24 Terrain Scan Density 10 ECM Strength 3 Jamming Range 22 Cloak Strength 6 Power Amplification 60 Additional Mass Support 9 Base Temperature (-) 200 Corruption Containment 8 Armor Coverage 150 Propulsion Shielding 66 Evasion (%) 74 Recoil Reduction 2 Kinecelleration 50 Offensive Hacking 42 Defensive Hacking 16 Authchip Count 3 Trap Extractor Capacity 4 Item Schematics ----------------- Arm. Wheel | -9/Storage | Hacked Lgt. Assault Rifle | -9/Storage | Hacked Imp. Light Cannon | -9/Storage | Hacked Autogun | -9/Storage | Hacked Visual Processing Unit | -9/Storage | Hacked Imp. Utility Shielding | -9/Recycling | Hacked Recoil Stabilizer | -9/Recycling | Hacked Gauss Cannon | -9/Recycling | Hacked Cld. Field Propulsion Drive | -6/Factory | Downloaded Coil Gun | -6/Factory | Scanalyzed Weapon Mount | -6/Factory | Hacked Lgt. Fission Core | -6/Factory | Scanalyzed CPS Tube | -6/Factory | Scanalyzed Imp. Linear Gravjet | -6/Factory | Hacked Exp. Cooling System | -6/Factory | Hacked Flamer | -6/Zion | Free Hvy. Riot Gun | -6/Zion | Free Enh. Flamer | -6/Zion | Free Ripper | -6/Zion | Free Hvy. Battle Rifle | -6/Zion | Free Bore Cannon | -6/Zion | Free Cloaking Device | -5/Factory | Scanalyzed Imp. Powered Armor | -5/Factory | Hacked Hyp. Coil Gun | -5/Factory | Hacked Imp. Diametric Drive | -5/Factory | Scanalyzed Exp. Heat Sink | -5/Factory | Scanalyzed Mic. Antimatter Reactor | -4/Factory | Downloaded Fusion Compressor | -4/Factory | Scanalyzed Adv. Power Amplifier | -4/Factory | Scanalyzed Graphene Brace | -4/Factory | Hacked Tri-rail Accelerator | -4/Factory | Hacked Micro-nuke Launcher | -4/Factory | Hacked Assault Drone Bay | -4/Zhirov | Free Exp. Optical Array | -4/Zhirov | Free Imp. Arc Thrower | -4/Zhirov | Free Com. Particle Reactor | -3/Testing | Hacked Robot Schematics ------------------ None Fabricated ------------ Cld. Field Propulsion Drive | x1 | -6/Factory | Authchip Cld. Field Propulsion Drive | x1 | -6/Factory | Authchip Cld. Field Propulsion Drive | x1 | -6/Factory | Authchip Cld. Field Propulsion Drive | x1 | -5/Factory | Authchip Cld. Field Propulsion Drive | x1 | -5/Factory | Authchip Cld. Field Propulsion Drive | x1 | -5/Factory | Authchip Imp. Diametric Drive | x1 | -4/Factory | Authchip Tri-rail Accelerator | x1 | -3/Research | Authchip Repaired ---------- Assault Rifle | 33% | -10/Materials Lgt. Armor Plating | 33% | -10/Materials Hvy. Assault Rifle | 33% | -9/Storage Lgt. Nuclear Core | 70% | -9/Storage Hvy. Assault Rifle | 72% | -9/Storage Cld. Field Propulsion Drive | 21% | -3/Research Studied --------- Coil Gun | -6/Factory | Hacked Lgt. Nuclear Core | -6/Factory | Hacked Mic. Fission Core | -5/Factory | Hacked VTOL Module | -5/Factory | Hacked KE Penetrator | -5/Factory | Hacked Fusion Compressor | -4/Factory | Hacked Lance | -4/Factory | Hacked Mic. Antimatter Reactor | -3/Testing | Hacked Alien Tech Used ----------------- Integrated Dissipator Subatomic Replicator Achievements -------------- Express Service Fine I'll Do It Myself Insider Info No Room For Error Robotopia Suspicious By Nature UFD MVP We Are One Wiki Contributor Challenges ------------ None Game ------ Seed InsulatedTripodNullifier Manual? 0 Play Time 09:33:53 Cumulative 1375.9 hours Start 2025.12.02 @ 01:10:54 End 2025.12.04 @ 03:02:34 Sessions 17 Manual Loads 0 Difficulty Rogue Special Mode None Game No. 627 Rogue 627 Adventurer 0 Explorer 0 Win Type 9 Total 28 Types 13/5/3/0/1/1/2/2/0/1 Lore% 93 Gallery% 90 Achievement% 69 Wizard Run 0 Options --------- Layout 0 ASCII 0 Keyboard 0 Movement Numpad Keybinds 0 Fullscreen 2 Font 24/Smallcaps Map View 76x50 Zoom Use 0% Tactical HUD 1 Map Filters NONE Filters SHIFT_HUE(315) Steam 1 RUN: 9f5580f8-fbaa-4034-a41c-6e00567eead0